Workbook

Sheet Presentacion (hidden)
B36: De conformidad con el artículo 772-1 del Estatuto Tributario, la Parte 7 del Libro 1 del Decreto 1625 de 2016, Único Reglamentario en Materia Tributaria, sustituida por el Decreto 1998 del 30 de noviembre de 2017, y la Resolución 052 del 30 de octubre de 2018, modificada por la resolución 000071 del 28 de octubre de 2019, los contribuyentes del impuesto sobre la renta y complementario, obligados a llevar contabilidad o quienes de manera voluntaria decidan llevar contabilidad, deberán llevar un sistema de control o conciliaciones de las diferencias que surjan entre la aplicación de los nuevos marcos técnicos normativos contables y las disposiciones del estatuto tributario. Dicha conciliación está conformada por “El control de detalle” que corresponde a la herramienta de control que de manera autónoma implemente el contribuyente y por el Reporte de conciliación fiscal. El presente Formato 2516 corresponde al Reporte de Conciliación fiscal que deberá ser diligenciado por todos los contribuyentes que declaran mediante el formulario 110 y conservado por el término de firmeza de la declaración de renta y complementario a la cual corresponde, para colocarlo a disposición de la Unidad Administrativa Especial Dirección de Impuestos y Aduanas Nacionales – DIAN- cuando ésta lo requiera. Adicionalmente, los contribuyentes que en el año gravable 2019 hayan obtenido ingresos brutos ordinarios y extraordinarios (incluyendo ingresos por ganancias ocasionales y rentas pasivas por Entidades Controladas del Exterior sin Residencia Fiscal en Colombia - ECE) iguales o superiores a 45.000 UVT ($1.542.150.000) deben presentar este reporte a través de los Servicios Informáticos SI. Este formato está conformado por las siguientes secciones, las cuales no requieren un orden específico de diligenciamiento, pero deben ser llenadas con los datos que de acuerdo a cada caso específico deban ser reportados, a fin de que no se presenten inconsistencias al momento de generar el archivo xml (por ejemplo, si en la sección H2 (ESF - Patrimonio) tiene algún valor por activo o pasivo por impuesto diferido, se debe diligenciar la sección H4 (Impuesto Diferido), debido a que en la validación se verifica que los saldos totales por estos conceptos en las dos secciones sean coincidentes). Carátula: esta sección registra los datos básicos del contribuyente y se responde con SI o NO las preguntas concretas, las cuales ayudan a interpretar las cifras de la conciliación. En esta sección se selecciona también la tarifa o tarifas a las cuales tributa durante este período gravable (Ej: 33% tarifa general, 20% para usuarios de zona franca, etc.). ESF – Patrimonio: registra los datos de los saldos contables del Estado de Situación Financiera, así como las diferencias resultantes por reconocimiento, medición, beneficios o limitaciones fiscales, entre la base contable y la base fiscal que se reportan como menor valor fiscal y/o mayor valor fiscal, obteniendo como resultado el valor fiscal, que debe corresponder al declarado en la declaración de renta y complementario. ERI - Renta Líquida: registra los datos de los saldos contables del Estado de Resultados y el Otro Resultado Integral junto con las diferencias resultantes por reconocimiento, medición, beneficios o limitaciones fiscales, entre la base contable y la base fiscal (menor valor fiscal y/o mayor valor fiscal), para obtener el valor fiscal de los ingresos, costos y gastos y la renta o pérdida líquida. Esta versión incluye la sección RENTA LIQUIDA POR TARIFA donde se debe desagregar el valor fiscal de acuerdo con la tarifa o tarifas que le apliquen de manera que el prevalidador pueda calcular el impuesto de renta y complementario correspondiente. Impuesto Diferido: información esencialmente contable, que se diligencia por una parte con los valores de las bases contables y fiscales de los activos y pasivos que dan lugar al impuesto diferido, y por otra, con los saldos contables del activo y pasivo por impuesto diferido registrados al 31 de diciembre del año 2019 y la misma fecha del año anterior. Esta sección incluye además el reporte de los activos por créditos tributarios (saldos a favor e impuestos pagados en el exterior) y el movimiento de las pérdidas fiscales y los excesos de renta presuntiva. Ingresos y Facturación: información netamente financiera donde se pueden conciliar las diferencias -si las hay- que se puedan presentar entre la facturación emitida en el período y el registro del devengo contable del ingreso. Activos Fijos: reporte contable y fiscal de la información de los activos del contribuyente, de acuerdo con los conceptos detallados. Resumen ESF – ERI: sección que se diligencia de forma automática con los datos de las secciones ESF – Patrimonio y ERI - Renta Líquida y que permite verificar con los estados financieros y la declaración de renta y complementario, si éstas secciones han sido diligenciados correctamente. Para el diligenciamiento tenga en cuenta que los valores se reportan en pesos colombianos, sin aproximaciones ni decimales y que solo se requiere diligenciar las celdas en las que es necesario reportar algún valor; las demás se pueden dejar en blanco. Para mayor detalle, remítase al Anexo 3 de la Resolución 000071 del 28 de octubre de 2019 “Guía diligenciamiento Reporte de Conciliación fiscal Anexo Formulario 110 Formato 2516 – Versión 3”

Sheet Prevalidador

Sheet LimpiarHojas (hidden)
A1: Numero Formatos | B1: 5
A2: Hoja | B2: Rango Casillas Limpiar
A3: H2 (ESF - Patrimonio) | B3: G12:J14|G17:J29|G31:J37|G40:J51|G53:J60|G62:J72|G74:J77|G79:J82|G83:H83|G85:J93|G96:J105|G107:J112|G114:J117|G119:J122|G125:J131|G133:J139|G141:J142|J143|G147:J158|G160:J162|G164:J168|G170:J172|G173:H173|G175:J178|G180:H190|G192:J195|G197:J203|J204|G209:H224|G226:H229|G231:H237|G239:H240|G242:H245|G248:H259|K249|K254
A4: H3 (ERI - Renta Liquida) | B4: H13:K34|N13:T34|H36:K38|N36:T38|H40:K46|N40:T46|H48:I49|H50:K53|S50:S53|H56:K57|H59:K63|N59:T63|H65:K72|N65:T72|H74:K81|H83:K94|N83:T94|H96:K102|N96:T102|H104:K107|N104:T107|H109:K114|N109:T114|H115:I115|K118:K122|H126:K141|N12:T141|H143:K146|N143:T146|H148:K171|N148:T171|H173:K183|N173:T185|K184:K185|H190:K193|N190:T193|H195:K214|N195:T214|H216:K239|N216:T239|H242:K245|N242:T245|H247:K269|N247:T269|H271:K294|N271:T294|H296:K306|N296:T306|H308:I309|H311:K315|N311:T315|H317:K325|N317:T325|H327:K333|N327:T333|H335:K338|N335:T338|K339|N339:T339|H340:I340|K341|N341:T341|K350:L353|K354|K355:L358|K360:L385|K388:L390|J394:K429|J432:K447|H451:H458|J451:L458|L463:L464|N62:T464|H466:K472|N466:T472|H474:k475|N474:T475|L481:L482|N481:T482|N484:T484|L485:L492|L495:L496|N496:T496|L498:L504|N498:T504|L508:L509|L511:L512|L514:L520|L522:L526|L528:L533|L536:L540|H543:J554|H558:H563|H566:I566|L566:L568|H568:I578|L573:L574|H580:I588|L579:L588
A5: H4 (Impuesto Diferido) | B5: D13:I30|D33:I50|D60:E61|G60:L61| D69:I69|E70:I81|K69:K81|D89:I89|E90:I95|K89:K95
A6: H5 (Ingresos y Facturación) | B6: C12:E14|G12:J16|J12:M14|L16:M16
A7: H6 (Activos fijos) | B7: D13:D30|F13:K30|Q13:Z30|AB13:AB30|AD13:AF30|AH13:AH30|D33:N34|Q33:Z34|AB33:AB34|AD33:AF34|AH33:AH34|D36:N36|Q36:Z36|AB36|AD36:AF36|AH36|D39:N52|Q39:Z52|AB39:AB52|AD39:AF52|AH39:AH52
A15: Hoja | B15: Rango Casillas Limpiar y bloquear - Efecto conversor
A16: H2 (ESF - Patrimonio) | B16: H12:H14|H17:H29|H31:H37|H40:H51|H53:H60|H62:H72|H74:H77|H79:H83|H85:H93|H96:H105|H107:H112|H114:H117|H119:H122|H125:H131|H133:H139|H141:H142|H147:H158|H160:H162|H164:H168|H170:H173|H175:H178|H180:H190|H192:H195|H197:H203|H209:H224|H226:H229|H231:H237|H239:H240|H242:H245|H248:H259
A17: H3 (ERI - Renta Liquida) | B17: I13:I34|I36:I38|I40:I46|I48:I53|I56:I57|I59:I63|I65:I72|I74:I81|I83:I94|I96:I102|I104:I107|I109:I115|I126:I141|I143:I146|I148:I171|I173:I183|I190:I193|I195:I214|I216:I239|I242:I245|I247:I269|I271:I294|I296:I306|I308:I309|I311:I315|I317:I325|I327:I333|I335:I338|I340|I466:I472|I474:I475|J543:J554|I566|I568:I578|I580:I588
A18: H6 (Activos fijos)

Sheet DefinicionXml (hidden)
A3: Hoja principal | B3: Cantidad Casillas | C3: Raiz Principal | D3: CELDA TARIFAS
A4: H1 (Caratula) | B4: 18 | C4: F2516 | D4: K18, K19, W18, W19, AB18, AB19, AP18, AP19
A9: INFORMACION DE RANGO CELDAS POR HOJA - GENERAR XML
A10: Hoja | B10: # Columnas | C10: Rango Casillas | D10: RAIZ HOJA PRINCIPAL | E10: RAIZ REGISTROS
A11: H2 (ESF - Patrimonio) | B11: 5 | C11: G11:K144|G146:K206|G208:H246|G248:K259 | D11: hoja2 | E11: registroH2
A12: H3 (ERI - Renta Liquida) | B12: 12 | C12: H11:T123|H125:T186|H188:T343|H347:L390|L391|J394:K430|J432:K448|H451:L459|L460:T461|N462:T462|L463:T464|H466:T477|L478:T484|L485:L495|L496:T506|K507:L507|L508:L520|L522:L540|H543:J556|H558:H564|H566:L588 | D12: hoja3 | E12: registroH3
A13: H4 (Impuesto Diferido) | B13: 8 | C13: D13:K31|D33:K51|D60:L61|D69:K81|D89:K95 | D13: hoja4 | E13: registroH4
A14: H5 (Ingresos y Facturación) | B14: 12 | C14: C12:N17 | D14: hoja5 | E14: registroH5
A15: H6 (Activos fijos) | B15: 31 | C15: D13:AH31|D33:AH37|D39:AH54 | D15: hoja6 | E15: registroH6
A16: H7 (Resumen ESF-ERI) | B16: 3 | C16: G11:I24|G26:I35|G37:I42|G45:I59|G61:I66|G69:I72|G74:I87 | D16: hoja7 | E16: registroH7
A21: INFORMACION ERRORES
A22: HOJA | B22: RANGO COLUMNAS DE ERROR
A23: H1 (Caratula) | B23: AQ21:AQ38
A24: H2 (ESF - Patrimonio) | B24: AA11:AA258, AB11:AB258, AC11:AC258
A25: H3 (ERI - Renta Liquida) | B25: AA11:AA585, AB11:AB585
A26: H4 (Impuesto Diferido) | B26: AA13:AA551, AA69:AA81, AA89:AA95
A27: H5 (Ingresos y Facturación) | B27: AA12:AA17
A28: H6 (Activos fijos) | B28: AK13:AK54, AL13:AL54, AM13:AM54, AN13:AN54, AO13:AO54

Sheet HErrores (hidden)
B1: 6
A2: HOJA | B2: COLUMNA ERRORES | C2: COLUMNA MSG ERROR | D2: FILA MAX | E2: FILA INI | F2: COL MAX | G2: CELDA TARIFAS
A3: H1 (Caratula) | C3: 47 | D3: 43 | E3: 17 | F3: 44 | G3: K18, K19, W18, W19, AB18, AB19, AP18, AP19
A4: H2 (ESF - Patrimonio) | B4: 27|28|29 | C4: 30 | D4: 259 | E4: 11 | F4: 11
A5: H3 (ERI - Renta Liquida) | B5: 27|28 | C5: 29 | D5: 588 | E5: 11 | F5: 20
A6: H4 (Impuesto Diferido) | B6: 27 | C6: 28 | D6: 95 | E6: 13 | F6: 12
A7: H5 (Ingresos y Facturación) | B7: 27 | C7: 28 | D7: 17 | E7: 12 | F7: 14
A8: H6 (Activos fijos) | B8: 37|38|39|40|41 | C8: 44 | D8: 54 | E8: 13 | F8: 34

Sheet ErroresXSD (hidden)
A1: GeneraXML | B1: 6
A2: Errores de validacion XSD
A5: Formato: | B5: Dmuisca_010251603202000000001.xml
A6: HOJA | B6: ID | C6: DESCRIPCION

Sheet GeneraXML (hidden)
A1: 3
A2: 2516
A3: H1 (Caratula) | C3: Datos del encabezado | F3: Archivos a generar
A4: Ano | C4: Año de envío | D4: 2020 | F4: # | G4: Nombre archivo | H4: Cantidad de registros | M4: 1
C5: Concepto | D5: 1 | F5: 1 | G5: Dmuisca_010251603202000000001.xml | H5: 1
A6: Formato | C6: Código del formato | D6: =A2 -> 2516
A7: Versión | C7: Versión del formato | D7: =A1 -> 3
A8: NumEnvio | C8: Número de envío | D8: 1
A9: FecEnvio | C9: Fecha de envío | D9: 2020-04-06T20:26:15
A10: FecInicial | C10: Fecha Inicial | D10: 2019-01-01
A11: FecFinal | C11: Fecha Final | D11: 2019-12-31
A12: ValorTotal | C12: Valor Total | D12: 231792684
A13: CantReg | C13: Cantidad total de registros | D13: 500
A14: DefinicionXml | C14: Registros por archivo | D14: 1
H52: 1
H53: 1
H54: 1
H55: 1
H56: 1
H57: 1
H58: 1
H59: 1
H60: 1
H61: 1
H62: 1
H63: 1
H64: 1
H65: 1
H66: 1
H67: 1
H68: 1
H69: 1
H70: 1
H71: 1
H72: 1
H73: 1
H74: 1
H75: 1
H76: 1
H77: 1
H78: 1
H79: 1
H80: 1
H81: 1
H82: 1
H83: 1
H84: 1
H85: 1
H86: 1
H87: 1
H88: 1
H89: 1
H90: 1
H91: 1
H92: 1
H93: 1
H94: 1
H95: 1
H96: 1
H97: 1
H98: 1
H99: 1
H100: 1
H101: 1
H102: 1
H103: 1
H104: 1
H105: 1
H106: 1
H107: 1
H108: 1
H109: 1
H110: 1
H111: 1
H112: 1
H113: 1
H114: 1
H115: 1
H116: 1
H117: 1
H118: 1
H119: 1
H120: 1
H121: 1
H122: 1
H123: 1
H124: 1
H125: 1
H126: 1
H127: 1
H128: 1
H129: 1
H130: 1
H131: 1
H132: 1
H133: 1
H134: 1
H135: 1
H136: 1
H137: 1
H138: 1
H139: 1
H140: 1
H141: 1
H142: 1
H143: 1
H144: 1
H145: 1
H146: 1
H147: 1
H148: 1
H149: 1
H150: 1
H151: 1
H152: 1
H153: 1
H154: 1
H155: 1
H156: 1
H157: 1
H158: 1
H159: 1
H160: 1
H161: 1
H162: 1
H163: 1
H164: 1
H165: 1
H166: 1
H167: 1
H168: 1
H169: 1
H170: 1
H171: 1
H172: 1
H173: 1
H174: 1
H175: 1
H176: 1
H177: 1
H178: 1
H179: 1
H180: 1
H181: 1
H182: 1
H183: 1
H184: 1
H185: 1
H186: 1
H187: 1
H188: 1
H189: 1
H190: 1
H191: 1
H192: 1
H193: 1
H194: 1
H195: 1
H196: 1
H197: 1
H198: 1
H199: 1
H200: 1
H201: 1
H202: 1
H203: 1
H204: 1
H205: 1
H206: 1
H207: 1
H208: 1
H209: 1
H210: 1
H211: 1
H212: 1
H213: 1
H214: 1
H215: 1
H216: 1
H217: 1
H218: 1
H219: 1
H220: 1
H221: 1
H222: 1
H223: 1
H224: 1
H225: 1
H226: 1
H227: 1
H228: 1
H229: 1
H230: 1
H231: 1
H232: 1
H233: 1
H234: 1
H235: 1
H236: 1
H237: 1
... 268 more rows

Sheet H1 (Caratula) (hidden)
J2: REPORTE DE CONCILIACION FISCAL ANEXO FORMULARIO 110 | AD2: Privada | AM2: 2516
B5: 1. Año | E5: | | |
Z6: 4. Número de formulario
B12: Datos del declarante | D12: 5. Número de Identificación Tributaria (NIT) | T12: 6.DV. | W12: 7. Primer apellido | Z12: 8. Segundo apellido | AF12: 9. Primer nombre | AO12: 10. Otros nombres
D14: 11. Razón social | AQ14: 12. Cód. Dirección seccional
B17: 24. No. Declaración de renta asociada:
B18: 29. Tarifas | L18: 0.09 | P18: 0.09 | Q18: 0.09 | S18: 0.09 | T18: 0.09 | X18: 0.2 | AC18: 0.27 | AQ18: Otra
L19: 0.15 | P19: 0.15 | Q19: 0.15 | S19: 0.15 | T19: 0.15 | X19: 0.24 | AC19: 33% Art. 240 E.T. | AR19: %
B20: Datos informativos (SI / NO)
B21: 30. Persona Natural sin residencia
B22: 31. Contribuyente del Régimen Tributario Especial
B23: 32. Entidad Cooperativa (artículo 19-4 Estatuto Tributario)
B24: 33. Entidad del sector financiero
B25: 34. Nueva sociedad - ZOMAC
B26: 35. Obras por impuestos - ZOMAC
B27: 36. Programa de reorganización empresarial durante el año gravable
B28: 37. Sociedad extranjera que presta servicio de transporte entre lugares colombianos y extranjeros
B29: 38. Obligado a aplicar sistemas especiales de valoración de inversiones
B30: 39. Costo de los inventarios establecidos por el sistema de juego de inventarios
B31: 40. Costo de los inventarios establecido simultáneamente por el juego de inventarios y por el sistema de inventario permanente
B32: 41. Progresividad de la tarifa de impuesto de renta, o, sociedad extranjera o entidad extranjera sin sucursal o establecimiento permanente
B33: 42. Contrato de estabilidad jurídica
B34: 43. Moneda funcional diferente al peso colombiano
B35: 44. Mega - Inversiones
B36: 45. Empresa de Economía Naranja
B37: 46. Compañía Holding Colombiana
B38: 47. Zona Económica y Social Especial
B39: 89. No. Identificación Signatario | W39: 90. DV
B40: 981. Cód. Representación | V40: 997. Fecha efectiva de la transacción | AD40: 996. Espacio para el numero interno de la DIAN
B41: Firma del Declarante o de quien lo representa
B44: 982. Código contador o Revisor Fiscal
B45: Firma Contador o Revisor Fiscal 994. Con salvedades
B48: 983, No. Tarjeta profesional
B49: X
C84: }
S122: 0

Sheet DefinicionMenu (hidden)
A1: Cantidad Hojas | B1: 8 | D1: VerAyuda
A2: Hoja | B2: Botones de Mostrar | C2: Botones de Ocultar
A3: H1 (Caratula) | B3: 2|3|4|5|6|8|9 | C3: 7|9
A4: H2 (ESF - Patrimonio) | B4: 2|3|6 | C4: 4|5|7|8|9
A5: H3 (ERI - Renta Liquida) | B5: 2|3|6 | C5: 4|5|7|8|9
A6: H4 (Impuesto Diferido) | B6: 2|3|6 | C6: 4|5|7|8|9
A7: H5 (Ingresos y Facturación) | B7: 2|3|6 | C7: 4|5|7|8|9
A8: H6 (Activos fijos) | B8: 2|3|6 | C8: 4|5|7|8|9
A9: H7 (Resumen ESF-ERI) | B9: 2|3|6 | C9: 4|5|7|8|9
A10: Formulario 110 | B10: 9|10 | C10: 2|3|4|5|6|7|8

Sheet H2 (ESF - Patrimonio) (hidden)
F1: Estado de Situación Financiera - Patrimonio
G7: val1 | H7: val2 | I7: val3 | J7: val4 | K7: val5
A8: NUM | B8: CONCEPTO | G8: VALOR CONTABLE | H8: EFECTO DE CONVERSION (Moneda Funcional Diferente al Peso Colombiano) | I8: MENOR VALOR FISCAL (por reconocimiento, exenciones, etc.) | J8: MAYOR VALOR FISCAL (por reconocimiento, exenciones, etc.) | K8: VALOR FISCAL | AA8: VALOR CONTABLE + EFECTO CONVERSOR – MENOR VALOR FISCAL ≥ 0 VALOR CONTABLE ≥ 0 VALOR FISCAL ≥ 0 | AB8: COLUMNA VALOR CONTABLE El Valor del Activos debe ser mayor que su correspondiente Amortización, Deterioro o Depreciación. | AC8: COLUMNA VALOR FISCAL El valor del Activos debe ser mayor que su correspondiente Amortización, Deterioro o Depreciación. | AD8: MENSAJE
A10: 10 | B10: ACTIVOS
A11: =A10+1 -> 11 | C11: Efectivo y equivalentes al efectivo | G11: =SUM(G12:G14) -> 0 | H11: =SUM(H12:H14) -> 0 | I11: =SUM(I12:I14) -> 0 | J11: 0 | K11: 0 | AA11: =IF(OR(G11<0,K11<0),"ERROR","OK") -> OK | AD11: =IF(OR(AA11="Error",AB11="Error",AC11="Error"),CONCATENATE("Error en el concepto ",C11," de la Hoja 2 Fila ",A11),"") -> 
A12: =A11+1 -> 12 | D12: Efectivo | K12: =G12+H12-I12+J12 -> 0 | AA12: =IF(OR(G12+H12-I12<0,K12<0),"ERROR","OK") -> OK | AD12: =IF(OR(AA12="Error",AB12="Error",AC12="Error"),CONCATENATE("Error en el concepto ",D12," de la Hoja 2 Fila ",A12),"") -> 
A13: 13 | D13: Equivalentes al efectivo | K13: =G13+H13-I13+J13 -> 0 | AA13: =IF(OR(G13+H13-I13<0,K13<0),"ERROR","OK") -> OK | AD13: =IF(OR(AA13="Error",AB13="Error",AC13="Error"),CONCATENATE("Error en el concepto ",D13," de la Hoja 2 Fila ",A13),"") -> 
A14: 14 | D14: Efectivo restringido | K14: 0 | AA14: =IF(OR(G14+H14-I14<0,K14<0),"ERROR","OK") -> OK | AD14: =IF(OR(AA14="Error",AB14="Error",AC14="Error"),CONCATENATE("Error en el concepto ",D14," de la Hoja 2 Fila ",A14),"") -> 
A15: 15 | C15: Inversiones e instrumentos financieros derivados (valor neto) | G15: =G16-G30 -> 0 | H15: =H16-H30 -> 0 | I15: =I16-I30 -> 0 | J15: =J16-J30 -> 0 | K15: =K16-K30 -> 0 | AA15: =IF(OR(G15<0,K15<0),"ERROR","OK") -> OK | AD15: =IF(OR(AA15="Error",AB15="Error",AC15="Error"),CONCATENATE("Error en el concepto ",C15," de la Hoja 2 Fila ",A15),"") -> 
A16: 16 | D16: Inversiones e instrumentos financieros derivados (valor bruto) | G16: =SUM(G17:G29) -> 0 | H16: =SUM(H17:H29) -> 0 | I16: =SUM(I17:I29) -> 0 | J16: =SUM(J17:J29) -> 0 | K16: =SUM(K17:K29) -> 0 | AA16: =IF(OR(G16<0,K16<0),"ERROR","OK") -> OK | AD16: =IF(OR(AA16="Error",AB16="Error",AC16="Error"),CONCATENATE("Error en el concepto ",D16," de la Hoja 2 Fila ",A16),"") -> 
A17: 17 | E17: Derechos de recompra de inversiones | K17: =G17+H17-I17+J17 -> 0 | AA17: OK | AB17: =IF(G17<G31,"ERROR","OK") -> OK | AC17: =IF(K17<K31,"ERROR","OK") -> OK | AD17: =IF(OR(AA17="Error",AB17="Error",AC17="Error"),CONCATENATE("Error en el concepto ",E17," de la Hoja 2 Fila ",A17),"") -> 
A18: 18 | E18: Inversiones en subsidiarias, asociadas y negocios conjuntos | F18: Valor razonable con cambios en resultados | K18: 0 | AA18: OK | AD18: =IF(OR(AA18="Error",AB18="Error",AC18="Error"),CONCATENATE("Error en el concepto ",$E$18,F18," de la Hoja 2 Fila ",A18),"") -> 
A19: 19 | F19: Valor razonable con cambios en el ORI | K19: 0 | AA19: OK | AD19: =IF(OR(AA19="Error",AB19="Error",AC19="Error"),CONCATENATE("Error en el concepto ",$E$18,F19," de la Hoja 2 Fila ",A19),"") -> 
A20: 20 | F20: Método de la participación | K20: 0 | AA20: OK | AB20: =IF(G20<G32,"ERROR","OK") -> OK | AC20: =IF(K20<K32,"ERROR","OK") -> OK
A21: 21 | F21: al costo | K21: 0 | AA21: OK | AB21: =IF(G21<G33,"ERROR","OK") -> OK | AC21: =IF(K21<K33,"ERROR","OK") -> OK
A22: 22 | E22: Instrumentos de deuda a costo amortizado | K22: 0 | AA22: OK | AB22: OK | AC22: OK | AD22: =IF(OR(AA22="Error",AB22="Error",AC22="Error"),CONCATENATE("Error en el concepto ",E22," de la Hoja 2 Fila ",A22),"") -> 
A23: 23 | E23: Instrumentos de deuda o patrimonio al costo | K23: 0 | AA23: OK | AB23: OK | AC23: OK
A24: 24 | E24: Instrumentos de deuda o patrimonio al valor razonable con cambios en resultados | K24: 0 | AA24: OK
A25: 25 | E25: Instrumentos de deuda o patrimonio al valor razonable con cambios en el ORI | K25: 0 | AA25: OK
A26: 26 | E26: Instrumentos financieros derivados con fines de negociación | K26: 0 | AA26: OK
A27: 27 | E27: Instrumentos financieros derivados con fines de cobertura | K27: 0 | AA27: OK
A28: 28 | E28: Derechos fiduciarios | K28: 0 | AA28: OK | AB28: =IF(G28<G36,"ERROR","OK") -> OK | AC28: =IF(K28<K36,"ERROR","OK") -> OK
A29: 29 | E29: Otros | K29: 0 | AA29: OK | AB29: =IF(G29<G37,"ERROR","OK") -> OK | AC29: =IF(K29<K37,"ERROR","OK") -> OK
A30: 30 | D30: Deterioro acumulado de inversiones | G30: =SUM(G31:G37) -> 0 | H30: =SUM(H31:H37) -> 0 | I30: =SUM(I31:I37) -> 0 | J30: =SUM(J31:J37) -> 0 | K30: =SUM(K31:K37) -> 0 | AA30: =IF(OR(G30<0,K30<0),"ERROR","OK") -> OK | AD30: =IF(OR(AA30="Error",AB30="Error",AC30="Error"),CONCATENATE("Error en el concepto ",D30," de la Hoja 2 Fila ",A30),"") -> 
A31: 31 | E31: Derechos de recompra de inversiones | K31: =G31+H31-I31+J31 -> 0 | AA31: OK | AD31: =IF(OR(AA31="Error",AB31="Error",AC31="Error"),CONCATENATE("Error en el concepto ",E31," de la Hoja 2 Fila ",A31),"") -> 
A32: 32 | E32: Inversiones en subsidiarias, asociadas y negocios conjuntos | F32: Método de la participación | K32: 0 | AA32: OK | AD32: =IF(OR(AA32="Error",AB32="Error",AC32="Error"),CONCATENATE("Error en el concepto ",$E$32,F32," de la Hoja 2 Fila ",A32),"") -> 
A33: 33 | F33: Costo | K33: 0 | AA33: OK | AD33: =IF(OR(AA33="Error",AB33="Error",AC33="Error"),CONCATENATE("Error en el concepto ",$E$32,F33," de la Hoja 2 Fila ",A33),"") -> 
A34: 34 | E34: instrumentos de deuda a costo amortizado | K34: 0 | AA34: OK | AD34: =IF(OR(AA34="Error",AB34="Error",AC34="Error"),CONCATENATE("Error en el concepto ",E34," de la Hoja 2 Fila ",A34),"") -> 
A35: 35 | E35: Instrumentos de deuda o patrimonio al costo | K35: 0 | AA35: OK | AD35: =IF(OR(AA35="Error",AB35="Error",AC35="Error"),CONCATENATE("Error en el concepto ",E35," de la Hoja 2 Fila ",A35),"") -> 
A36: 36 | E36: Derechos fiduciarios | K36: 0 | AA36: OK | AD36: =IF(OR(AA36="Error",AB36="Error",AC36="Error"),CONCATENATE("Error en el concepto ",E36," de la Hoja 2 Fila ",A36),"") -> 
A37: 37 | E37: Otros | K37: 0 | AA37: OK | AD37: =IF(OR(AA37="Error",AB37="Error",AC37="Error"),CONCATENATE("Error en el concepto ",E37," de la Hoja 2 Fila ",A37),"") -> 
A38: 38 | C38: Cuentas comerciales por cobrar y otras cuentas por cobrar | G38: =G39-G52 -> 0 | H38: =H39-H52 -> 0 | I38: =I39-I52 -> 0 | J38: 0 | K38: 0 | AA38: =IF(OR(G38<0,K38<0),"ERROR","OK") -> OK
A39: 39 | D39: Cuentas y documentos por cobrar | G39: =SUM(G40:G51) -> 0 | H39: =SUM(H40:H51) -> 0 | I39: =SUM(I40:I51) -> 0 | J39: 0 | K39: 0 | AA39: =IF(OR(G39<0,K39<0),"ERROR","OK") -> OK | AD39: =IF(OR(AA39="Error",AB39="Error",AC39="Error"),CONCATENATE("Error en el concepto ",D39," de la Hoja 2 Fila ",A39),"") -> 
A40: 40 | E40: Cartera de crédito (préstamos bancarios) | K40: =G40+H40-I40+J40 -> 0 | AA40: OK | AB40: =IF(G40<G53,"ERROR","OK") -> OK | AC40: =IF(K40<K53,"ERROR","OK") -> OK | AD40: =IF(OR(AA40="Error",AB40="Error",AC40="Error"),CONCATENATE("Error en el concepto ",E40," de la Hoja 2 Fila ",A40),"") -> 
A41: 41 | E41: Cuentas comerciales por cobrar | K41: 0 | AA41: OK | AB41: =IF(G41<G54,"ERROR","OK") -> OK | AC41: =IF(K41<K54,"ERROR","OK") -> OK
A42: 42 | E42: Cuentas por cobrar en acuerdos de concesión (modelo del activo financiero) | K42: 0 | AA42: OK | AB42: OK | AC42: OK
A43: 43 | E43: Arrendamiento financiero o leasing financiero | K43: 0 | AA43: OK | AB43: OK | AC43: OK
A44: 44 | E44: Dividendos y participaciones | K44: 0 | AA44: OK | AB44: OK | AC44: OK
A45: 45 | E45: Cuentas por cobrar a socios, accionistas o partícipes | K45: 0 | AA45: OK | AB45: OK | AC45: OK
A46: 46 | E46: Cuentas y documentos por cobrar a otras partes relacionadas y asociadas | K46: 0 | AA46: OK | AB46: OK | AC46: OK
A47: 47 | E47: Primas de seguros por recaudar | K47: 0 | AA47: OK
A48: 48 | E48: Cartera de difícil cobro | K48: 0 | AA48: OK
A49: 49 | E49: Reclamaciones por cobrar | K49: 0 | AA49: OK
A50: 50 | E50: Anticipos de pagos | K50: 0 | AA50: OK
A51: 51 | E51: Otras cuentas y documentos por cobrar | K51: 0 | AA51: OK | AB51: =IF(G47+G48+G49+G50+G51<G60,"ERROR","OK") -> OK | AC51: =IF(K47+K48+K49+K50+K51<K60,"ERROR","OK") -> OK
A52: 52 | D52: Deterioro acumulado del valor cuentas y documentos por cobrar | G52: =SUM(G53:G60) -> 0 | H52: =SUM(H53:H60) -> 0 | I52: =SUM(I53:I60) -> 0 | J52: 0 | K52: 0 | AA52: =IF(OR(G52<0,K52<0),"ERROR","OK") -> OK | AD52: =IF(OR(AA52="Error",AB52="Error",AC52="Error"),CONCATENATE("Error en el concepto ",D52," de la Hoja 2 Fila ",A52),"") -> 
A53: 53 | E53: Cartera de crédito (préstamos bancarios) | K53: =G53+H53-I53+J53 -> 0 | AA53: OK | AD53: =IF(OR(AA53="Error",AB53="Error",AC53="Error"),CONCATENATE("Error en el concepto ",E53," de la Hoja 2 Fila ",A53),"") -> 
A54: 54 | E54: Cuentas comerciales por cobrar | K54: 0 | AA54: OK | AD54: =IF(OR(AA54="Error",AB54="Error",AC54="Error"),CONCATENATE("Error en el concepto ",E54," de la Hoja 2 Fila ",A54),"") -> 
A55: 55 | E55: Cuentas por cobrar en acuerdos de concesión (modelo del activo financiero) | K55: 0 | AA55: OK
A56: 56 | E56: Arrendamiento financiero o leasing financiero | K56: 0 | AA56: OK
A57: 57 | E57: Dividendos y participaciones | K57: 0 | AA57: OK
A58: 58 | E58: Cuentas por cobrar a socios, accionistas o partícipes | K58: 0 | AA58: OK
A59: 59 | E59: Cuentas por cobrar a otras partes relacionadas y asociadas | K59: 0 | AA59: OK
A60: 60 | E60: Otras cuentas por cobrar | K60: 0 | AA60: OK
A61: 61 | C61: Inventarios | G61: =SUM(G62:G71)-G72 -> 0 | H61: =SUM(H62:H71)-H72 -> 0 | I61: =SUM(I62:I71)-I72 -> 0 | J61: =SUM(J62:J71)-J72 -> 0 | K61: =SUM(K62:K71)-K72 -> 0 | AA61: =IF(OR(G61<0,K61<0),"ERROR","OK") -> OK
A62: 62 | D62: Para la venta, no producidos por la empresa | K62: =G62+H62-I62+J62 -> 0 | AA62: OK | AD62: =IF(OR(AA62="Error",AB62="Error",AC62="Error"),CONCATENATE("Error en el concepto ",D62," de la Hoja 2 Fila ",A62),"") -> 
A63: 63 | D63: En tránsito | K63: 0 | AA63: OK | AD63: =IF(OR(AA63="Error",AB63="Error",AC63="Error"),CONCATENATE("Error en el concepto ",D63," de la Hoja 2 Fila ",A63),"") -> 
A64: 64 | D64: Materias primas, suministros y materiales | K64: 0 | AA64: OK
A65: 65 | D65: En proceso (diferentes de obras o inmuebles en construcción para la venta) | K65: 0 | AA65: OK
A66: 66 | D66: Costos prestadores de servicios | K66: 0 | AA66: OK
A67: 67 | D67: Producto terminado (diferentes de obras o inmuebles terminados para la venta) | K67: 0 | AA67: OK
A68: 68 | D68: Obras o inmuebles en construcción para la venta | K68: 0 | AA68: OK
A69: 69 | D69: Obras o inmuebles terminados para la venta | K69: 0 | AA69: OK
A70: 70 | D70: Piezas de repuesto y equipo auxiliar clasificados como inventarios | K70: 0 | AA70: OK
A71: 71 | D71: Inventario que surge de la actividad de extracción | K71: 0 | AA71: OK
A72: 72 | D72: Deterioro acumulado del valor de inventarios | K72: 0 | AA72: OK
A73: 73 | C73: Gastos pagados por anticipado | G73: =SUM(G74:G77) -> 0 | H73: =SUM(H74:H77) -> 0 | I73: =SUM(I74:I77) -> 0 | J73: 0 | K73: 0 | AA73: =IF(OR(G73<0,K73<0),"ERROR","OK") -> OK
A74: 74 | D74: Publicidad | K74: =G74+H74-I74+J74 -> 0 | AA74: OK | AD74: =IF(OR(AA74="Error",AB74="Error",AC74="Error"),CONCATENATE("Error en el concepto ",D74," de la Hoja 2 Fila ",A74),"") -> 
A75: 75 | D75: Primas de seguros | K75: 0 | AA75: OK | AD75: =IF(OR(AA75="Error",AB75="Error",AC75="Error"),CONCATENATE("Error en el concepto ",D75," de la Hoja 2 Fila ",A75),"") -> 
A76: =A75+1 -> 76 | D76: Arrendamientos | K76: 0 | AA76: OK
A77: 77 | D77: Otros | K77: 0 | AA77: OK
A78: 78 | C78: Activos por impuestos corrientes | G78: =SUM(G79:G82) -> 0 | H78: =SUM(H79:H82) -> 0 | I78: 0 | J78: 0 | K78: 0 | AA78: =IF(OR(G78<0,K78<0),"ERROR","OK") -> OK | AD78: =IF(OR(AA78="Error",AB78="Error",AC78="Error"),CONCATENATE("Error en el concepto ",C78," de la Hoja 2 Fila ",A78),"") -> 
A79: 79 | D79: Saldos a favor por el impuesto de renta | K79: =G79+H79-I79+J79 -> 0 | AA79: =IF(OR(G79+H79-I79<0,K79<0),"ERROR","OK") -> OK | AD79: =IF(OR(AA79="Error",AB79="Error",AC79="Error"),CONCATENATE("Error en el concepto ",D79," de la Hoja 2 Fila ",A79),"") -> 
A80: 80 | D80: Saldos a favor - otros impuestos y gravámenes | K80: 0 | AA80: OK | AD80: =IF(OR(AA80="Error",AB80="Error",AC80="Error"),CONCATENATE("Error en el concepto ",D80," de la Hoja 2 Fila ",A80),"") -> 
A81: 81 | D81: Descuentos tributarios | K81: 0 | AA81: OK | AD81: =IF(OR(AA81="Error",AB81="Error",AC81="Error"),CONCATENATE("Error en el concepto ",D81," de la Hoja 2 Fila ",A81),"") -> 
A82: 82 | D82: Anticipos y otros | K82: 0 | AA82: OK | AD82: =IF(OR(AA82="Error",AB82="Error",AC82="Error"),CONCATENATE("Error en el concepto ",D82," de la Hoja 2 Fila ",A82),"") -> 
A83: 83 | C83: Activos por impuestos diferidos | I83: =G83+H83 -> 0 | K83: 0 | AA83: =IF(OR(G83+H83-I83<0,K83<0,I83<0),"ERROR","OK") -> OK
A84: 84 | C84: Propiedades, planta y equipo | G84: =SUM(G85:G91)-G92-G93 -> 0 | H84: =SUM(H85:H91)-H92-H93 -> 0 | I84: =SUM(I85:I91)-I92-I93 -> 0 | J84: 0 | K84: 0 | AA84: =IF(OR(G84<0,K84<0),"ERROR","OK") -> OK
A85: 85 | D85: Terrenos | K85: =G85+H85-I85+J85 -> 0 | AA85: OK | AD85: =IF(OR(AA85="Error",AB85="Error",AC85="Error"),CONCATENATE("Error en el concepto ",D85," de la Hoja 2 Fila ",A85),"") -> 
A86: 86 | D86: Construcciones en proceso | K86: 0 | AA86: OK | AD86: =IF(OR(AA86="Error",AB86="Error",AC86="Error"),CONCATENATE("Error en el concepto ",D86," de la Hoja 2 Fila ",A86),"") -> 
A87: 87 | D87: Edificios | F87: Costo | K87: 0 | AA87: OK | AD87: =IF(OR(AA87="Error",AB87="Error",AC87="Error"),CONCATENATE("Error en el concepto ",D87,F87," de la Hoja 2 Fila ",A87),"") -> 
A88: 88 | F88: Ajuste acumulado por revaluaciones o reexpresiones | K88: 0 | AA88: OK | AD88: =IF(OR(AA88="Error",AB88="Error",AC88="Error"),CONCATENATE("Error en el concepto ",D87,F88," de la Hoja 2 Fila ",A88),"") -> 
A89: 89 | D89: Activos tangibles para exploración y evaluación de recursos minerales | K89: 0 | AA89: OK | AD89: =IF(OR(AA89="Error",AB89="Error",AC89="Error"),CONCATENATE("Error en el concepto ",D89," de la Hoja 2 Fila ",A89),"") -> 
A90: 90 | D90: Otras propiedades, planta y equipo | F90: Costo | K90: 0 | AA90: OK | AD90: =IF(OR(AA90="Error",AB90="Error",AC90="Error"),CONCATENATE("Error en el concepto ",D90,F90," de la Hoja 2 Fila ",A90),"") -> 
A91: 91 | F91: Ajuste acumulado por revaluaciones o reexpresiones | K91: 0 | AA91: OK | AD91: =IF(OR(AA91="Error",AB91="Error",AC91="Error"),CONCATENATE("Error en el concepto ",D90,F91," de la Hoja 2 Fila ",A91),"") -> 
A92: 92 | D92: Depreciación acumulada de propiedades, planta y equipo | K92: 0 | AA92: OK | AD92: =IF(OR(AA92="Error",AB92="Error",AC92="Error"),CONCATENATE("Error en el concepto ",D92," de la Hoja 2 Fila ",A92),"") -> 
A93: 93 | D93: Deterioro acumulado de propiedades, planta y equipo | K93: 0 | AA93: OK | AD93: =IF(OR(AA93="Error",AB93="Error",AC93="Error"),CONCATENATE("Error en el concepto ",D93," de la Hoja 2 Fila ",A93),"") -> 
A94: 94 | C94: Activos intangibles | G94: =G95+G106 -> 0 | H94: =H95+H106 -> 0 | I94: =I95+I106 -> 0 | J94: =J95+J106 -> 0 | K94: =K95+K106 -> 0 | AA94: =IF(OR(G94<0,K94<0),"ERROR","OK") -> OK
A95: 95 | D95: Activos intangibles distintos a la plusvalía | G95: =SUM(G96:G103)-G104-G105 -> 0 | H95: =SUM(H96:H103)-H104-H105 -> 0 | I95: =SUM(I96:I103)-I104-I105 -> 0 | J95: =SUM(J96:J103)-J104-J105 -> 0 | K95: =SUM(K96:K103)-K104-K105 -> 0 | AA95: =IF(OR(G95<0,K95<0),"ERROR","OK") -> OK | AD95: =IF(OR(AA95="Error",AB95="Error",AC95="Error"),CONCATENATE("Error en el concepto ",D95," de la Hoja 2 Fila ",A95),"") -> 
A96: 96 | E96: Acuerdos de concesión (modelo del activo intangible) | K96: =G96+H96-I96+J96 -> 0 | AA96: OK | AD96: =IF(OR(AA96="Error",AB96="Error",AC96="Error"),CONCATENATE("Error en el concepto ",E96," de la Hoja 2 Fila ",A96),"") -> 
A97: 97 | E97: Activos intangibles exploración y evaluación de recursos minerales | K97: 0 | AA97: OK | AD97: =IF(OR(AA97="Error",AB97="Error",AC97="Error"),CONCATENATE("Error en el concepto ",E97," de la Hoja 2 Fila ",A97),"") -> 
A98: 98 | E98: Marcas, patentes, licencias y otros derechos | F98: Costo | K98: 0 | AA98: OK | AD98: =IF(OR(AA98="Error",AB98="Error",AC98="Error"),CONCATENATE("Error en el concepto ",E98,F98," de la Hoja 2 Fila ",A98),"") -> 
A99: 99 | F99: Ajuste acumulado por revaluaciones o reexpresiones | K99: 0 | AA99: OK | AD99: =IF(OR(AA99="Error",AB99="Error",AC99="Error"),CONCATENATE("Error en el concepto ",E98,F99," de la Hoja 2 Fila ",A99),"") -> 
A100: 100 | E100: Arrendamiento Financiero | F100: Costo | K100: 0 | AA100: OK | AD100: =IF(OR(AA100="Error",AB100="Error",AC100="Error"),CONCATENATE("Error en el concepto ",E100,F100," de la Hoja 2 Fila ",A100),"") -> 
A101: 101 | F101: Ajuste acumulado por revaluaciones o reexpresiones | K101: 0 | AA101: OK | AD101: =IF(OR(AA101="Error",AB101="Error",AC101="Error"),CONCATENATE("Error en el concepto ",E100,F101," de la Hoja 2 Fila ",A101),"") -> 
A102: 102 | E102: Otros activos intangibles | F102: Costo | K102: 0 | AA102: OK | AD102: =IF(OR(AA102="Error",AB102="Error",AC102="Error"),CONCATENATE("Error en el concepto ",E102,F102," de la Hoja 2 Fila ",A102),"") -> 
A103: 103 | F103: Ajuste acumulado por revaluaciones o reexpresiones | K103: 0 | AA103: OK | AD103: =IF(OR(AA103="Error",AB103="Error",AC103="Error"),CONCATENATE("Error en el concepto ",E102,F103," de la Hoja 2 Fila ",A103),"") -> 
A104: 104 | E104: Amortización acumulada de activos intangibles distintos de la plusvalía | K104: 0 | AA104: OK | AD104: =IF(OR(AA104="Error",AB104="Error",AC104="Error"),CONCATENATE("Error en el concepto ",E104," de la Hoja 2 Fila ",A104),"") -> 
A105: 105 | E105: Deterioro acumulado de activos intangibles distintos de la plusvalía | K105: 0 | AA105: OK | AD105: =IF(OR(AA105="Error",AB105="Error",AC105="Error"),CONCATENATE("Error en el concepto ",E105," de la Hoja 2 Fila ",A105),"") -> 
A106: 106 | D106: Plusvalía o Good Will | G106: =SUM(G107:G110)-G111-G112 -> 0 | H106: =SUM(H107:H110)-H111-H112 -> 0 | I106: =SUM(I107:I110)-I111-I112 -> 0 | J106: 0 | K106: 0 | AA106: =IF(OR(G106<0,K106<0),"ERROR","OK") -> OK | AD106: =IF(OR(AA106="Error",AB106="Error",AC106="Error"),CONCATENATE("Error en el concepto ",D106," de la Hoja 2 Fila ",A106),"") -> 
A107: 107 | E107: Plusvalía o Good Will | F107: Adquisición de establecimiento de comercio | K107: =G107+H107-I107+J107 -> 0 | AA107: OK | AD107: =IF(OR(AA107="Error",AB107="Error",AC107="Error"),CONCATENATE("Error en el concepto ",E107,F107," de la Hoja 2 Fila ",A107),"") -> 
A108: 108 | F108: Fusiones | K108: 0 | AA108: OK | AD108: =IF(OR(AA108="Error",AB108="Error",AC108="Error"),CONCATENATE("Error en el concepto ",E107,F108," de la Hoja 2 Fila ",A108),"") -> 
A109: 109 | F109: Escisiones | K109: 0 | AA109: OK | AD109: =IF(OR(AA109="Error",AB109="Error",AC109="Error"),CONCATENATE("Error en el concepto ",E107,F109," de la Hoja 2 Fila ",A109),"") -> 
A110: 110 | F110: Compra de acciones | K110: 0 | AA110: OK | AD110: =IF(OR(AA110="Error",AB110="Error",AC110="Error"),CONCATENATE("Error en el concepto ",E107,F110," de la Hoja 2 Fila ",A110),"") -> 
A111: 111 | E111: Amortización acumulada de la plusvalía o Good Will | K111: 0 | AA111: OK | AD111: =IF(OR(AA111="Error",AB111="Error",AC111="Error"),CONCATENATE("Error en el concepto ",E111," de la Hoja 2 Fila ",A111),"") -> 
A112: 112 | E112: Deterioro acumulado de la plusvalía o Good Will | K112: 0 | AA112: OK | AD112: =IF(OR(AA112="Error",AB112="Error",AC112="Error"),CONCATENATE("Error en el concepto ",E112," de la Hoja 2 Fila ",A112),"") -> 
A113: 113 | C113: Propiedades de inversión | G113: =G114+G115-G116-G117 -> 0 | H113: =H114+H115-H116-H117 -> 0 | I113: =I114+I115-I116-I117 -> 0 | J113: 0 | K113: 0 | AA113: =IF(OR(G113<0,K113<0),"ERROR","OK") -> OK
A114: 114 | D114: Terrenos y edificios | F114: Al costo | K114: =G114+H114-I114+J114 -> 0 | AA114: OK | AD114: =IF(OR(AA114="Error",AB114="Error",AC114="Error"),CONCATENATE("Error en el concepto ",D114,F114," de la Hoja 2 Fila ",A114),"") -> 
A115: 115 | F115: Al valor razonable | K115: 0 | AA115: OK | AD115: =IF(OR(AA115="Error",AB115="Error",AC115="Error"),CONCATENATE("Error en el concepto ",D114,F115," de la Hoja 2 Fila ",A115),"") -> 
A116: 116 | D116: Depreciación acumulada de propiedades de inversión | K116: 0 | AA116: OK | AD116: =IF(OR(AA116="Error",AB116="Error",AC116="Error"),CONCATENATE("Error en el concepto ",D116," de la Hoja 2 Fila ",A116),"") -> 
A117: 117 | D117: Deterioro acumulado de propiedades de inversión | K117: 0 | AA117: OK | AD117: =IF(OR(AA117="Error",AB117="Error",AC117="Error"),CONCATENATE("Error en el concepto ",D117," de la Hoja 2 Fila ",A117),"") -> 
A118: 118 | C118: Activos no corrientes | G118: =G119-G120+G121-G122 -> 0 | H118: =H119-H120+H121-H122 -> 0 | I118: =I119-I120+I121-I122 -> 0 | J118: 0 | K118: 0 | AA118: =IF(OR(G118<0,K118<0),"ERROR","OK") -> OK
A119: 119 | D119: Mantenidos para la venta | K119: =G119+H119-I119+J119 -> 0 | AA119: OK | AB119: =IF(OR(G119<G120,K119<K120),"ERROR","OK") -> OK | AD119: =IF(OR(AA119="Error",AB119="Error",AC119="Error"),CONCATENATE("Error en el concepto ",D119," de la Hoja 2 Fila ",A119),"") -> 
A120: 120 | D120: Deterioro acumulado activos no corrientes mantenidos para la venta | K120: 0 | AA120: OK | AD120: =IF(OR(AA120="Error",AB120="Error",AC120="Error"),CONCATENATE("Error en el concepto ",D120," de la Hoja 2 Fila ",A120),"") -> 
A121: 121 | D121: Mantenidos para distribuir a los propietarios | K121: 0 | AA121: OK | AB121: =IF(OR(G121<G122,K121<K122),"ERROR","OK") -> OK | AD121: =IF(OR(AA121="Error",AB121="Error",AC121="Error"),CONCATENATE("Error en el concepto ",D121," de la Hoja 2 Fila ",A121),"") -> 
A122: 122 | D122: Deterioro acumulado activos no corrientes mantenidos para distribuir a los propietarios | K122: 0 | AA122: OK | AD122: =IF(OR(AA122="Error",AB122="Error",AC122="Error"),CONCATENATE("Error en el concepto ",D122," de la Hoja 2 Fila ",A122),"") -> 
A123: 123 | C123: Activos biológicos | G123: =G124+G132 -> 0 | H123: =H124+H132 -> 0 | I123: =I124+I132 -> 0 | J123: 0 | K123: 0 | AA123: =IF(OR(G123<0,K123<0),"ERROR","OK") -> OK
A124: 124 | D124: Animales vivos | G124: =G125-G126-G127+G128+G129-G130+G131 -> 0 | H124: =H125-H126-H127+H128+H129-H130+H131 -> 0 | I124: =I125-I126-I127+I128+I129-I130+I131 -> 0 | J124: =J125-J126-J127+J128+J129-J130+J131 -> 0 | K124: =K125-K126-K127+K128+K129-K130+K131 -> 0 | AA124: =IF(OR(G124<0,K124<0),"ERROR","OK") -> OK | AD124: =IF(OR(AA124="Error",AB124="Error",AC124="Error"),CONCATENATE("Error en el concepto ",D124," de la Hoja 2 Fila ",A124),"") -> 
A125: 125 | E125: Animales productores medidos al costo | K125: =G125+H125-I125+J125 -> 0 | AA125: OK | AB125: =IF(OR(G125<G126+G127,K125<K126+K127),"ERROR","OK") -> OK | AD125: =IF(OR(AA125="Error",AB125="Error",AC125="Error"),CONCATENATE("Error en el concepto ",E125," de la Hoja 2 Fila ",A125),"") -> 
A126: 126 | E126: Depreciación acumulada de animales productores medidos al costo | K126: 0 | AA126: OK
A127: 127 | E127: Deterioro acumulado de animales productores medidos al costo | K127: 0 | AA127: OK
A128: 128 | E128: Animales productores medidos al valor razonable menos costos de venta | K128: 0 | AA128: OK
A129: 129 | E129: Animales consumibles medidos al costo | K129: 0 | AA129: OK | AB129: =IF(OR(G129<G130,K129<K130),"ERROR","OK") -> OK
A130: 130 | E130: Deterioro acumulado animales consumibles medidos al costo | K130: 0 | AA130: OK
A131: 131 | E131: Animales consumibles medidos al valor razonable menos costos de venta | K131: 0 | AA131: OK
A132: 132 | D132: Plantas productoras y cultivos consumibles | G132: =G133-G134-G135+G136+G137-G138+G139 -> 0 | H132: =H133-H134-H135+H136+H137-H138+H139 -> 0 | I132: =I133-I134-I135+I136+I137-I138+I139 -> 0 | J132: 0 | K132: 0 | AA132: =IF(OR(G132<0,K132<0),"ERROR","OK") -> OK | AD132: =IF(OR(AA132="Error",AB132="Error",AC132="Error"),CONCATENATE("Error en el concepto ",D132," de la Hoja 2 Fila ",A132),"") -> 
A133: 133 | E133: Plantas productoras medidas al costo | K133: =G133+H133-I133+J133 -> 0 | AA133: OK | AB133: =IF(OR(G133<G134+G135,K133<K134+K135),"ERROR","OK") -> OK | AD133: =IF(OR(AA133="Error",AB133="Error",AC133="Error"),CONCATENATE("Error en el concepto ",E133," de la Hoja 2 Fila ",A133),"") -> 
A134: 134 | E134: Depreciación acumulada de plantas productoras | K134: 0 | AA134: OK
A135: 135 | E135: Deterioro acumulado de plantas productoras | K135: 0 | AA135: OK
A136: 136 | E136: Plantas productoras medidas al valor razonable | K136: 0 | AA136: OK
A137: 137 | E137: Cultivos consumibles medidos al costo | K137: 0 | AA137: OK | AB137: =IF(OR(G137<G138,K137<K138),"ERROR","OK") -> OK
A138: 138 | E138: Deterioro acumulado cultivos consumibles medidos al costo | K138: 0 | L138: =SUM(G93+H93+G105+H105+G112+H112+G117+H117+G120+H120+G122+H122+G127+H127+G130+H130+G135+H135+G138+H138) -> 0 | AA138: OK
A139: 139 | E139: Cultivos consumibles medidos al valor razonable menos costos de venta | K139: 0 | AA139: OK
A140: =A139+1 -> 140 | C140: Otros activos | G140: =SUM(G141:G143) -> 0 | H140: =SUM(H141:H143) -> 0 | I140: =SUM(I141:I143) -> 0 | J140: 0 | K140: 0 | AA140: =IF(OR(G140<0,K140<0),"ERROR","OK") -> OK | AD140: =IF(OR(AA140="Error",AB140="Error",AC140="Error"),CONCATENATE("Error en el concepto ",C140," de la Hoja 2 Fila ",A140),"") -> 
A141: 141 | D141: Activos plan de beneficios a empleados | K141: =G141+H141-I141+J141 -> 0 | AA141: OK | AD141: =IF(OR(AA141="Error",AB141="Error",AC141="Error"),CONCATENATE("Error en el concepto ",D141," de la Hoja 2 Fila ",A141),"") -> 
A142: 142 | D142: Otros activos | K142: 0 | AA142: =IF(OR(G142+H142-I142<0,K142<0),"ERROR","OK") -> OK | AD142: =IF(OR(AA142="Error",AB142="Error",AC142="Error"),CONCATENATE("Error en el concepto ",D142," de la Hoja 2 Fila ",A142),"") -> 
A143: 143 | D143: Activos reconocidos solamente para fines fiscales | K143: 0 | AA143: OK | AD143: =IF(OR(AA143="Error",AB143="Error",AC143="Error"),CONCATENATE("Error en el concepto ",D143," de la Hoja 2 Fila ",A143),"") -> 
A144: 144 | C144: TOTAL ACTIVOS | G144: =G11+G15+G38+G61+G73+G78+G83+G84+G94+G113+G118+G123+G140 -> 0 | H144: =H11+H15+H38+H61+H73+H78+H83+H84+H94+H113+H118+H123+H140 -> 0 | I144: =I11+I15+I38+I61+I73+I78+I83+I84+I94+I113+I118+I123+I140 -> 0 | J144: =J11+J15+J38+J61+J73+J78+J83+J84+J94+J113+J118+J123+J140 -> 0 | K144: =K11+K15+K38+K61+K73+K78+K83+K84+K94+K113+K118+K123+K140 -> 0 | AA144: =IF(OR(G144<0,K144<0),"ERROR","OK") -> OK
A145: 145 | B145: PASIVOS
A146: 146 | C146: Obligaciones financieras y cuentas por pagar | G146: =SUM(G147:G158) -> 0 | H146: =SUM(H147:H158) -> 0 | I146: =SUM(I147:I158) -> 0 | J146: =SUM(J147:J158) -> 0 | K146: =SUM(K147:K158) -> 0 | AA146: =IF(OR(G146<0,K146<0),"ERROR","OK") -> OK
A147: 147 | D147: Obligaciones financieras en moneda local | K147: =G147+H147-I147+J147 -> 0 | AA147: OK | AD147: =IF(OR(AA147="Error",AB147="Error",AC147="Error"),CONCATENATE("Error en el concepto ",D147," de la Hoja 2 Fila ",A147),"") -> 
A148: 148 | D148: Obligaciones financieras en moneda extranjera | K148: 0 | AA148: OK | AD148: =IF(OR(AA148="Error",AB148="Error",AC148="Error"),CONCATENATE("Error en el concepto ",D148," de la Hoja 2 Fila ",A148),"") -> 
A149: 149 | D149: Depósitos y exigibilidades | K149: 0 | AA149: OK
A150: 150 | D150: Cuentas comerciales por pagar en moneda local | K150: 0 | AA150: OK
A151: 151 | D151: Cuentas comerciales por pagar en moneda extranjera | K151: 0 | AA151: OK
A152: 152 | D152: Dividendos y participaciones por pagar | K152: 0 | AA152: OK
A153: 153 | D153: Cuentas por pagar a socios, accionistas o partícipes | K153: 0 | AA153: OK
A154: 154 | D154: Cuentas y documentos por pagar a otras partes relacionadas y asociadas | K154: 0 | AA154: OK
A155: 155 | D155: Reserva matemática y/o técnica y otros pasivos exclusivos en compañías de seguros | K155: 0 | AA155: OK
A156: 156 | D156: Recaudo a favor de terceros | K156: 0 | AA156: OK
A157: 157 | D157: Otras cuentas y documentos por pagar en moneda local | K157: 0 | AA157: OK
A158: 158 | D158: Otras cuentas y documentos por pagar en moneda extranjera | K158: 0 | AA158: OK
A159: 159 | C159: Arrendamientos por pagar | G159: =SUM(G160:G162) -> 0 | H159: =SUM(H160:H162) -> 0 | I159: =SUM(I160:I162) -> 0 | J159: 0 | K159: 0 | AA159: =IF(OR(G159<0,K159<0),"ERROR","OK") -> OK
A160: 160 | D160: Financiero o leasing - partes no relacionadas | K160: =G160+H160-I160+J160 -> 0 | AA160: OK | AD160: =IF(OR(AA160="Error",AB160="Error",AC160="Error"),CONCATENATE("Error en el concepto ",D160," de la Hoja 2 Fila ",A160),"") -> 
A161: 161 | D161: Financiero o leasing - partes relacionadas | K161: 0 | AA161: OK | AD161: =IF(OR(AA161="Error",AB161="Error",AC161="Error"),CONCATENATE("Error en el concepto ",D161," de la Hoja 2 Fila ",A161),"") -> 
A162: 162 | D162: Operativo | K162: 0 | AA162: OK | AD162: =IF(OR(AA162="Error",AB162="Error",AC162="Error"),CONCATENATE("Error en el concepto ",D162," de la Hoja 2 Fila ",A162),"") -> 
A163: 163 | C163: Otros pasivos financieros | G163: =SUM(G164:G168) -> 0 | H163: =SUM(H164:H168) -> 0 | I163: =SUM(I164:I168) -> 0 | J163: 0 | K163: =SUM(K164:K168) -> 0 | AA163: =IF(OR(G163<0,K163<0),"ERROR","OK") -> OK
A164: 164 | D164: Bonos y documentos equivalentes | K164: =G164+H164-I164+J164 -> 0 | AA164: OK | AD164: =IF(OR(AA164="Error",AB164="Error",AC164="Error"),CONCATENATE("Error en el concepto ",D164," de la Hoja 2 Fila ",A164),"") -> 
A165: 165 | D165: Instrumentos financieros derivados | K165: 0 | AA165: OK | AD165: =IF(OR(AA165="Error",AB165="Error",AC165="Error"),CONCATENATE("Error en el concepto ",D165," de la Hoja 2 Fila ",A165),"") -> 
A166: 166 | D166: Acciones preferenciales o aportes de capital clasificados como pasivos | K166: 0 | AA166: OK
A167: 167 | D167: Derechos fiduciarios | K167: 0 | AA167: OK
A168: 168 | D168: Otros pasivos financieros | K168: 0 | AA168: OK
A169: 169 | C169: Impuestos, gravámenes y tasas por pagar | G169: =SUM(G170:G172) -> 0 | H169: =SUM(H170:H172) -> 0 | I169: =SUM(I170:I172) -> 0 | J169: 0 | K169: 0 | AA169: =IF(OR(G169<0,K169<0),"ERROR","OK") -> OK
A170: 170 | D170: Impuesto de renta | K170: =G170+H170-I170+J170 -> 0 | AA170: OK | AD170: =IF(OR(AA170="Error",AB170="Error",AC170="Error"),CONCATENATE("Error en el concepto ",D170," de la Hoja 2 Fila ",A170),"") -> 
A171: 171 | D171: Impuesto al valor agregado - IVA | K171: 0 | AA171: OK | AD171: =IF(OR(AA171="Error",AB171="Error",AC171="Error"),CONCATENATE("Error en el concepto ",D171," de la Hoja 2 Fila ",A171),"") -> 
A172: 172 | D172: Otros impuestos, gravámenes y tasas por pagar | K172: 0 | AA172: OK
A173: 173 | C173: Pasivos por impuestos diferidos | I173: =G173+H173 -> 0 | K173: 0 | AA173: =IF(OR(G173+H173-I173<0,K173<0,I173<0),"ERROR","OK") -> OK
A174: 174 | C174: Pasivos por beneficios a los empleados | G174: =SUM(G175:G178) -> 0 | H174: =SUM(H175:H178) -> 0 | I174: =SUM(I175:I178) -> 0 | J174: =SUM(J175:J178) -> 0 | K174: =SUM(K175:K178) -> 0 | AA174: =IF(OR(G174<0,K174<0),"ERROR","OK") -> OK
A175: 175 | D175: De corto plazo | K175: =G175+H175-I175+J175 -> 0 | AA175: OK | AD175: =IF(OR(AA175="Error",AB175="Error",AC175="Error"),CONCATENATE("Error en el concepto ",D175," de la Hoja 2 Fila ",A175),"") -> 
A176: 176 | D176: De largo plazo | K176: 0 | AA176: OK | AD176: =IF(OR(AA176="Error",AB176="Error",AC176="Error"),CONCATENATE("Error en el concepto ",D176," de la Hoja 2 Fila ",A176),"") -> 
A177: 177 | D177: Por terminación del vínculo laboral o contractual | K177: 0 | AA177: OK
A178: 178 | D178: Post empleo | K178: 0 | AA178: OK
A179: 179 | C179: Provisiones | G179: =SUM(G180:G190) -> 0 | H179: =SUM(H180:H190) -> 0 | I179: =SUM(I180:I190) -> 0 | J179: =SUM(J180:J190) -> 0 | K179: =SUM(K180:K190) -> 0 | AA179: =IF(OR(G179<0,K179<0),"ERROR","OK") -> OK
A180: =A179+1 -> 180 | D180: Procesos legales (litigios y demandas) | I180: =G180+H180 -> 0 | K180: =G180+H180-I180+J180 -> 0 | AA180: =IF(OR(G180+H180-I180<0,K180<0,I180<0),"ERROR","OK") -> OK | AD180: =IF(OR(AA180="Error",AB180="Error",AC180="Error"),CONCATENATE("Error en el concepto ",D180," de la Hoja 2 Fila ",A180),"") -> 
A181: 181 | D181: Mantenimiento y reparaciones | I181: 0 | K181: 0 | AA181: =IF(OR(G181+H181-I181<0,K181<0,I181<0),"ERROR","OK") -> OK | AD181: =IF(OR(AA181="Error",AB181="Error",AC181="Error"),CONCATENATE("Error en el concepto ",D181," de la Hoja 2 Fila ",A181),"") -> 
A182: 182 | D182: Obligaciones fiscales | I182: 0 | K182: 0 | AA182: OK
A183: 183 | D183: Desmantelamientos, restauración y rehabilitación | I183: 0 | K183: 0 | AA183: OK
A184: 184 | D184: Garantías | I184: 0 | K184: 0 | AA184: OK
A185: 185 | D185: Contratos onerosos | I185: 0 | K185: 0 | AA185: OK
A186: 186 | D186: Reembolsos a clientes | I186: 0 | K186: 0 | AA186: OK
A187: 187 | D187: Reestructuraciones de negocios | I187: 0 | K187: 0 | AA187: OK
A188: 188 | D188: Pasivos contingentes asumidos en una combinación de negocios | I188: 0 | K188: 0 | AA188: OK
A189: 189 | D189: Relacionadas con el medio ambiente | I189: 0 | K189: 0 | AA189: OK
A190: 190 | D190: Otras provisiones | I190: 0 | K190: 0 | AA190: OK
A191: 191 | C191: Pasivos por ingresos diferidos | G191: =SUM(G192:G195) -> 0 | H191: =SUM(H192:H195) -> 0 | I191: =SUM(I192:I195) -> 0 | J191: 0 | K191: =SUM(K192:K195) -> 0 | AA191: =IF(OR(G191<0,K191<0),"ERROR","OK") -> OK
A192: 192 | D192: Anticipos y avances recibidos de clientes | K192: =G192+H192-I192+J192 -> 0 | AA192: OK | AD192: =IF(OR(AA192="Error",AB192="Error",AC192="Error"),CONCATENATE("Error en el concepto ",D192," de la Hoja 2 Fila ",A192),"") -> 
A193: 193 | D193: Ingresos diferidos por programas de fidelización | K193: 0 | AA193: OK | AD193: =IF(OR(AA193="Error",AB193="Error",AC193="Error"),CONCATENATE("Error en el concepto ",D193," de la Hoja 2 Fila ",A193),"") -> 
A194: 194 | D194: Subvenciones del gobierno y otras ayudas | K194: 0 | AA194: OK
A195: 195 | D195: Otros pasivos por ingresos diferidos | K195: 0 | AA195: OK
A196: 196 | C196: Otros pasivos | G196: =SUM(G197:G204) -> 0 | H196: =SUM(H197:H204) -> 0 | I196: =SUM(I197:I204) -> 0 | J196: 0 | K196: =SUM(K197:K204) -> 0 | AA196: =IF(OR(G196<0,K196<0),"ERROR","OK") -> OK
A197: 197 | D197: Depósitos recibidos | K197: =G197+H197-I197+J197 -> 0 | AA197: OK | AD197: =IF(OR(AA197="Error",AB197="Error",AC197="Error"),CONCATENATE("Error en el concepto ",D197," de la Hoja 2 Fila ",A197),"") -> 
A198: 198 | D198: Retenciones a terceros sobre contratos | K198: 0 | AA198: OK | AD198: =IF(OR(AA198="Error",AB198="Error",AC198="Error"),CONCATENATE("Error en el concepto ",D198," de la Hoja 2 Fila ",A198),"") -> 
A199: 199 | D199: Embargos judiciales | K199: 0 | AA199: OK | AD199: =IF(OR(AA199="Error",AB199="Error",AC199="Error"),CONCATENATE("Error en el concepto ",D199," de la Hoja 2 Fila ",A199),"") -> 
A200: 200 | D200: Cuentas en participación | K200: 0 | AA200: OK
A201: 201 | D201: Pasivo para ejecución de excedentes - Régimen Tributario Especial | K201: 0 | AA201: OK
A202: 202 | D202: Fondos sociales, mutuales y otros | K202: 0 | AA202: OK
A203: 203 | D203: Otros pasivos | K203: 0 | AA203: OK
A204: =A203+1 -> 204 | D204: Pasivos reconocidos solamente para fines fiscales | K204: 0 | AA204: =IF(OR(J204<0,K204<0),"ERROR","OK") -> OK
A205: 205 | C205: TOTAL PASIVOS | G205: =G146+G159+G163+G169+G173+G174+G179+G191+G196 -> 0 | H205: =H146+H159+H163+H169+H173+H174+H179+H191+H196 -> 0 | I205: =I146+I159+I163+I169+I173+I174+I179+I191+I196 -> 0 | J205: =J146+J159+J163+J169+J173+J174+J179+J191+J196 -> 0 | K205: =K146+K159+K163+K169+K173+K174+K179+K191+K196 -> 0 | AD205: =IF(OR(AA205="Error",AB205="Error",AC205="Error"),CONCATENATE("Error en el concepto ",C205," de la Hoja 2 Fila ",A205),"") -> 
A206: 206 | B206: PATRIMONIO (ACTIVOS - PASIVOS) | G206: =G144-G205 -> 0 | H206: =H144-H205 -> 0 | I206: =I144-I205 -> 0 | J206: =J144-J205 -> 0 | K206: =K144-K205 -> 0
... 53 more rows

Sheet H3 (ERI - Renta Liquida) (hidden)
G1: Estado de resultados - Impuesto de Renta y complementarios
H7: val1 | I7: val2 | J7: val3 | K7: val4 | L7: val5 | N7: val6 | O7: val7 | P7: val8 | Q7: val9 | R7: val10 | S7: val11 | T7: val12
A8: NUM | B8: CONCEPTO | H8: VALOR CONTABLE (VAL1) | I8: EFECTO DE CONVERSION (Moneda Funcional Diferente al Peso Colombiano) (VAL2) | J8: MENOR VALOR FISCAL (por reconocimiento, exenciones, limitaciones, etc.) (VAL3) | K8: MAYOR VALOR FISCAL (por reconocimiento, recuperaciones, deducciones, etc.) (VAL4) | L8: VALOR FISCAL TOTAL (VAL5) | N8: RENTA LIQUIDA POR TARIFA | AA8: VALOR CONTABLE + EFECTO CONVERSOR – MENOR VALOR FISCAL ≥ 0 VALOR CONTABLE ≥ 0 VALOR FISCAL ≥ 0 | AB8: DISTRIBUCIÓN DE LA RENTA LIQUIDA POR TARIFA = VALOR FISCAL | AC8: Mensaje
N9: 9% (VAL6) | O9: 15 % (VAL7) | P9: 20 % (VAL8) | Q9: 24 % (VAL9) | R9: 27 % (VAL10) | S9: 33% Art. 240 E.T. (VAL11) | T9: =CONCATENATE("Otras ",'H1 (Caratula)'!AP19,"% (VAL12)") -> Otras % (VAL12)
B10: INGRESOS
A11: 11 | C11: Ingresos netos Actividad Industrial, comercial y servicios | H11: =H12-H35 -> 0 | I11: =I12-I35 -> 0 | J11: =J12-J35 -> 0 | K11: =K12-K35 -> 0 | L11: =L12-L35 -> 0 | N11: =N12-N35 -> 0 | O11: 0 | P11: 0 | Q11: 0 | R11: =R12-R35 -> 0 | S11: 0 | T11: 0 | AC11: =IF(OR(AA11="ERROR",AB11="ERROR"),CONCATENATE("Error en el concepto ",C11," de la Hoja 3 Fila ",A11),"") -> 
A12: =A11+1 -> 12 | D12: Ingresos brutos Actividad Industrial, comercial y servicios | H12: =SUM(H13:H34) -> 0 | I12: =SUM(I13:I34) -> 0 | J12: =SUM(J13:J34) -> 0 | K12: 0 | L12: 0 | N12: =SUM(N13:N34) -> 0 | O12: 0 | P12: 0 | Q12: 0 | R12: 0 | S12: 0 | T12: 0 | AA12: =IF(OR(H12<0,L12<0),"ERROR","OK") -> OK | AC12: =IF(OR(AA12="ERROR",AB12="ERROR"),CONCATENATE("Error en el concepto ",$D$12," de la Hoja 3 Fila ",A12),"") -> 
A13: 13 | E13: Venta de bienes | G13: Al territorio nacional | L13: =H13+I13-J13+K13 -> 0 | AA13: =IF(OR(H13+I13-J13<0,L13<0),"ERROR","OK") -> OK | AB13: =IF(L13<>SUM(N13:T13),"ERROR","OK") -> OK | AC13: =IF(OR(AA13="ERROR",AB13="ERROR"),CONCATENATE("Error en el concepto ",$E$13,$G13," de la Hoja 3 Fila ",A13),"") -> 
A14: 14 | G14: Exportación a otros países | L14: =H14+I14-J14+K14 -> 0 | AA14: =IF(OR(H14+I14-J14<0,L14<0),"ERROR","OK") -> OK | AB14: =IF(L14<>SUM(N14:T14),"ERROR","OK") -> OK | AC14: =IF(OR(AA14="ERROR",AB14="ERROR"),CONCATENATE("Error en el concepto ",$E$13,$G14," de la Hoja 3 Fila ",A14),"") -> 
A15: 15 | G15: Zona franca | L15: 0 | AA15: OK | AB15: OK
A16: 16 | G16: Comercializadoras Internacionales | L16: 0 | AA16: OK | AB16: OK
A17: 17 | G17: Jurisdicciones no cooperantes, de baja o nula imposición y regímenes tributarios preferenciales | L17: 0 | AA17: OK | AB17: OK
A18: 18 | G18: Vinculado Económicos zona Franca y exterior | L18: 0 | AA18: OK | AB18: OK
A19: 19 | E19: Prestación de servicios (diferentes de honorarios profesionales) | G19: Al territorio nacional | L19: 0 | AA19: OK | AB19: OK | AC19: =IF(OR(AA19="ERROR",AB19="ERROR"),CONCATENATE("Error en el concepto ",$E$19,$G19," de la Hoja 3 Fila ",A19),"") -> 
A20: 20 | G20: Exportación a otros países | L20: 0 | AA20: OK | AB20: OK | AC20: =IF(OR(AA20="ERROR",AB20="ERROR"),CONCATENATE("Error en el concepto ",$E$19,$G20," de la Hoja 3 Fila ",A20),"") -> 
A21: 21 | G21: Zona franca | L21: 0 | AA21: OK | AB21: OK
A22: 22 | G22: Comercializadoras Internacionales | L22: 0 | AA22: OK | AB22: OK
A23: 23 | G23: Jurisdicciones no cooperantes, de baja o nula imposición y regímenes tributarios preferenciales | L23: 0 | AA23: OK | AB23: OK
A24: 24 | G24: Vinculado Económicos zona Franca y exterior | L24: 0 | AA24: OK | AB24: OK
A25: 25 | E25: Servicios de construcción | L25: 0 | AA25: OK | AB25: OK | AC25: =IF(OR(AA25="ERROR",AB25="ERROR"),CONCATENATE("Error en el concepto ",E25," de la Hoja 3 Fila ",A25),"") -> 
A26: 26 | E26: Acuerdos de concesión de servicios | L26: 0 | AA26: OK | AB26: OK | AC26: =IF(OR(AA26="ERROR",AB26="ERROR"),CONCATENATE("Error en el concepto ",E26," de la Hoja 3 Fila ",A26),"") -> 
A27: 27 | E27: Arrendamientos operativos | L27: 0 | AA27: OK | AB27: OK
A28: 28 | E28: Regalías | L28: 0 | AA28: OK | AB28: OK
A29: 29 | E29: Comisiones (relaciones de agencia) | L29: 0 | AA29: OK | AB29: OK
A30: 30 | E30: Honorarios Profesionales | L30: 0 | AA30: OK | AB30: OK
A31: 31 | E31: Actividades de seguros y de capitalización | L31: 0 | AA31: OK | AB31: OK
A32: 32 | E32: Liberación de reservas en contratos de seguros | L32: 0 | AA32: OK | AB32: OK
A33: 33 | E33: Comisiones bancarias, costos de transacción, entre otros | L33: 0 | AA33: OK | AB33: OK
A34: 34 | E34: Otros ingresos | L34: 0 | AA34: OK | AB34: OK
A35: 35 | D35: Devoluciones, rebajas y descuentos | H35: =SUM(H36:H38) -> 0 | I35: =SUM(I36:I38) -> 0 | J35: =SUM(J36:J38) -> 0 | K35: =SUM(K36:K38) -> 0 | L35: =SUM(L36:L38) -> 0 | N35: =SUM(N36:N38) -> 0 | O35: 0 | P35: 0 | Q35: 0 | R35: 0 | S35: 0 | T35: 0 | AA35: =IF(OR(H35<0,L35<0),"ERROR","OK") -> OK | AC35: =IF(OR(AA35="ERROR",AB35="ERROR"),CONCATENATE("Error en el concepto ",D35," de la Hoja 3 Fila ",A35),"") -> 
A36: 36 | E36: En venta de bienes | L36: =H36+I36-J36+K36 -> 0 | AA36: OK | AB36: OK | AC36: =IF(OR(AA36="ERROR",AB36="ERROR"),CONCATENATE("Error en el concepto ",E36," de la Hoja 3 Fila ",A36),"") -> 
A37: 37 | E37: En prestación de servicios | L37: 0 | AA37: OK | AB37: OK | AC37: =IF(OR(AA37="ERROR",AB37="ERROR"),CONCATENATE("Error en el concepto ",E37," de la Hoja 3 Fila ",A37),"") -> 
A38: 38 | E38: Otras devoluciones, rebajas y descuentos | L38: 0 | AA38: OK | AB38: OK
A39: 39 | C39: Ingresos financieros | H39: =SUM(H40:H46) -> 0 | I39: =SUM(I40:I46) -> 0 | J39: =SUM(J40:J46) -> 0 | K39: =SUM(K40:K46) -> 0 | L39: =SUM(L40:L46) -> 0 | N39: =SUM(N40:N46) -> 0 | O39: 0 | P39: 0 | Q39: 0 | R39: 0 | S39: 0 | T39: 0 | AA39: =IF(OR(H39<0,L39<0),"ERROR","OK") -> OK | AC39: =IF(OR(AA39="ERROR",AB39="ERROR"),CONCATENATE("Error en el concepto ",C39," de la Hoja 3 Fila ",A39),"") -> 
A40: 40 | D40: Arrendamiento financiero o mercantil (leasing) | L40: =H40+I40-J40+K40 -> 0 | AA40: OK | AB40: OK | AC40: =IF(OR(AA40="ERROR",AB40="ERROR"),CONCATENATE("Error en el concepto ",D40," de la Hoja 3 Fila ",A40),"") -> 
A41: 41 | D41: Intereses - sector financiero | L41: 0 | AA41: OK | AB41: OK | AC41: =IF(OR(AA41="ERROR",AB41="ERROR"),CONCATENATE("Error en el concepto ",D41," de la Hoja 3 Fila ",A41),"") -> 
A42: 42 | D42: Intereses por préstamos a terceros (diferentes al sector financiero) | L42: 0 | AA42: OK | AB42: OK
A43: 43 | D43: Por instrumentos financieros medidos a costo amortizado distinto a préstamos | L43: 0 | AA43: OK | AB43: OK
A44: 44 | D44: Intereses implícitos (transacciones de financiación) | L44: 0 | AA44: OK | AB44: OK
A45: 45 | D45: Diferencia en cambio | L45: 0 | AA45: OK | AB45: OK
A46: 46 | D46: Otros ingresos financieros | L46: 0 | AA46: OK | AB46: OK
A47: 47 | C47: Ganancias por inversiones en subsidiarias, asociadas y/o negocios conjuntos | H47: =SUM(H48:H57) -> 0 | I47: =SUM(I48:I57) -> 0 | J47: =SUM(J48:J57) -> 0 | K47: 0 | L47: 0 | N47: =SUM(N48:N57) -> 0 | O47: 0 | P47: 0 | Q47: 0 | R47: 0 | S47: =SUM(S48:S57) -> 0 | T47: =SUM(T48:T57) -> 0 | AA47: =IF(OR(H47<0,L47<0),"ERROR","OK") -> OK
A48: 48 | D48: Ganancias por el método de participación | J48: =H48+I48 -> 0 | L48: =H48+I48-J48+K48 -> 0 | S48: 0 | AA48: =IF(OR(H48+I48-J48<0,L48<0,J48<0),"ERROR","OK") -> OK | AC48: =IF(OR(AA48="ERROR",AB48="ERROR"),CONCATENATE("Error en el concepto ",D48," de la Hoja 3 Fila ",A48),"") -> 
A49: 49 | D49: Ganancias cambios en el valor razonable | J49: =H49+I49 -> 0 | L49: 0 | S49: 0 | AA49: =IF(OR(H49+I49-J49<0,L49<0,J49<0),"ERROR","OK") -> OK | AC49: =IF(OR(AA49="ERROR",AB49="ERROR"),CONCATENATE("Error en el concepto ",D49," de la Hoja 3 Fila ",A49),"") -> 
A50: 50 | D50: Sociedades nacionales y/o utilidades generadas antes del año 2017 | G50: Dividendos y participaciones NO constitutivos de renta ni ganancia ocasional | L50: 0 | S50: 0 | AA50: =IF(OR(H50+I50-J50<0,L50<0,),"ERROR","OK") -> OK | AB50: =IF('H1 (Caratula)'!AQ21="S",(IF(L50+L53+L54>L122,"ERROR","OK")),"OK") -> OK | AC50: =IF(AA50="ERROR",CONCATENATE("Error en el concepto ",$D$50," ",G50," de la Hoja 3 Fila ",A50),(IF(AB50="ERROR",CONCATENATE("El valor de los ingresos no constitutivos de renta ni ganancia ocasional (casilla L122) no puede ser inferior al valor de los dividendos no constitutivos de renta ni ganancia ocasional (casilla L50+L53+L54)"),""))) -> 
A51: 51 | G51: Dividendos y participaciones gravados | L51: 0 | S51: 0 | AA51: OK | AB51: =IF('H1 (Caratula)'!AQ21="N",(IF(L52<>SUM(N52:T52),"ERROR","OK")),"OK") -> OK | AC51: =IF(OR(AA51="ERROR",AB51="ERROR"),CONCATENATE("Error en el concepto ",$D$50," ",G51," de la Hoja 3 Fila ",A51),"") -> 
A52: 52 | G52: Dividendos y participaciones exentas (régimen CHC) | L52: 0 | S52: 0 | AA52: OK | AB52: =IF('H1 (Caratula)'!AQ21="N",(IF(L53<>SUM(N53:T53),"ERROR","OK")),"OK") -> OK | AC52: =IF(OR(AA52="ERROR",AB52="ERROR"),CONCATENATE("Error en el concepto ",$D$50," ",G52," de la Hoja 3 Fila ",A52),"") -> 
A53: 53 | D53: Capitalizaciones no gravadas (art. 36-3 E.T.) | L53: 0 | S53: 0 | AA53: OK | AB53: =IF('H1 (Caratula)'!AQ21="N",(IF(L54<>SUM(N54:T54),"ERROR","OK")),"OK") -> OK | AC53: =IF(OR(AA53="ERROR",AB53="ERROR"),CONCATENATE("Error en el concepto ",$D$53," de la Hoja 3 Fila ",A53),"") -> 
A54: 54 | D54: MEGA - INVERSIONES (art. 235-3 E.T.) | G54: Dividendos y participaciones No gravados | L54: 0 | AA54: OK | AC54: =IF(OR(AA54="ERROR",AB54="ERROR"),CONCATENATE("Error en el concepto ",$D$54,G54," de la Hoja 3 Fila ",A54),"") -> 
A55: 55 | G55: Dividendos y participaciones gravados | L55: 0 | AA55: OK | AC55: =IF(OR(AA55="ERROR",AB55="ERROR"),CONCATENATE("Error en el concepto ",$D$54,G55," de la Hoja 3 Fila ",A55),"") -> 
A56: 56 | D56: Establecimientos permanentes y sociedades extranjeras - utilidades generadas a partir del año 2017 | G56: Dividendos y participaciones gravados al 7,5% | L56: 0 | AA56: OK | AC56: =IF(OR(AA56="ERROR",AB56="ERROR"),CONCATENATE("Error en el concepto ",$D$56,G56," de la Hoja 3 Fila ",A56),"") -> 
A57: 57 | G57: Dividendos y participaciones gravados, tarifa general art. 240 E.T. | L57: 0 | AA57: OK | AC57: =IF(OR(AA57="ERROR",AB57="ERROR"),CONCATENATE("Error en el concepto ",$D$56,G57," de la Hoja 3 Fila ",A57),"") -> 
A58: 58 | C58: Ingresos por mediciones a valor razonable | H58: =SUM(H59:H63) -> 0 | I58: =SUM(I59:I63) -> 0 | J58: =SUM(J59:J63) -> 0 | K58: 0 | L58: 0 | N58: =SUM(N59:N63) -> 0 | O58: 0 | P58: 0 | Q58: 0 | R58: 0 | S58: 0 | T58: 0 | AA58: =IF(OR(H58<0,L58<0),"ERROR","OK") -> OK
A59: 59 | D59: Activos biológicos | L59: =H59+I59-J59+K59 -> 0 | AA59: OK | AB59: OK | AC59: =IF(OR(AA59="ERROR",AB59="ERROR"),CONCATENATE("Error en el concepto ",D59," de la Hoja 3 Fila ",A59),"") -> 
A60: 60 | D60: Propiedades de inversión | L60: 0 | AA60: OK | AB60: OK | AC60: =IF(OR(AA60="ERROR",AB60="ERROR"),CONCATENATE("Error en el concepto ",D60," de la Hoja 3 Fila ",A60),"") -> 
A61: 61 | D61: Instrumentos financieros, diferente a inversiones en subsidiarias, asociadas y/o negocios conjuntos | L61: 0 | AA61: OK | AB61: OK | AC61: =IF(OR(AA61="ERROR",AB61="ERROR"),CONCATENATE("Error en el concepto ",D61," de la Hoja 3 Fila ",A61),"") -> 
A62: 62 | D62: Instrumentos derivados | L62: 0 | AA62: OK | AB62: OK | AC62: =IF(OR(AA62="ERROR",AB62="ERROR"),CONCATENATE("Error en el concepto ",D62," de la Hoja 3 Fila ",A62),"") -> 
A63: 63 | D63: Otros | L63: 0 | AA63: OK | AB63: OK | AC63: =IF(OR(AA63="ERROR",AB63="ERROR"),CONCATENATE("Error en el concepto ",D63," de la Hoja 3 Fila ",A63),"") -> 
A64: 64 | C64: Utilidad en la venta o enajenación de activos, bienes poseídos por menos de dos años | H64: =SUM(H65:H72) -> 0 | I64: =SUM(I65:I72) -> 0 | J64: =SUM(J65:J72) -> 0 | K64: =SUM(K65:K72) -> 0 | L64: =SUM(L65:L72) -> 0 | N64: =SUM(N65:N72) -> 0 | O64: 0 | P64: 0 | Q64: 0 | R64: 0 | S64: 0 | T64: 0 | AA64: =IF(OR(H64<0,L64<0),"ERROR","OK") -> OK
A65: 65 | D65: Propiedades, planta y equipo | L65: =H65+I65-J65+K65 -> 0 | AA65: OK | AB65: OK | AC65: =IF(OR(AA65="ERROR",AB65="ERROR"),CONCATENATE("Error en el concepto ",D65," de la Hoja 3 Fila ",A65),"") -> 
A66: 66 | D66: Propiedades de Inversión | L66: 0 | AA66: OK | AB66: OK
A67: 67 | D67: Activos biológicos (sin plantas productoras) | L67: 0 | AA67: OK | AB67: OK
A68: 68 | D68: Activos no corrientes mantenidos para la venta / entregar a propietarios | L68: 0 | AA68: OK | AB68: OK
A69: 69 | D69: Activos Intangibles | L69: 0 | AA69: OK | AB69: OK
A70: 70 | D70: Inversiones en acciones y otras participaciones | L70: 0 | AA70: OK | AB70: OK
A71: 71 | D71: Por disposición de otros instrumentos financieros | L71: 0 | AA71: OK | AB71: OK
A72: 72 | D72: Otros | L72: 0 | AA72: OK | AB72: OK
A73: 73 | C73: Utilidad por venta o enajenación de activos, bienes poseídos por dos años o más (ganancia ocasional) | H73: =SUM(H74:H81) -> 0 | I73: =SUM(I74:I81) -> 0 | J73: =SUM(J74:J81) -> 0 | K73: =SUM(K74:K81) -> 0 | L73: =SUM(L74:L81) -> 0 | N73: =SUM(N74:N81) -> 0 | O73: 0 | P73: 0 | Q73: 0 | R73: 0 | S73: 0 | T73: 0 | AA73: =IF(OR(H73<0,L73<0),"ERROR","OK") -> OK
A74: 74 | D74: Propiedades, planta y equipo | L74: =H74+I74-J74+K74 -> 0 | AA74: OK | AC74: =IF(OR(AA74="ERROR",AB74="ERROR"),CONCATENATE("Error en el concepto ",D74," de la Hoja 3 Fila ",A74),"") -> 
A75: 75 | D75: Propiedades de Inversión | L75: 0 | AA75: OK | AC75: =IF(OR(AA75="ERROR",AB75="ERROR"),CONCATENATE("Error en el concepto ",D75," de la Hoja 3 Fila ",A75),"") -> 
A76: 76 | D76: Activos biológicos (sin plantas productoras) | L76: 0 | AA76: OK
A77: 77 | D77: Activos no corrientes mantenidos para la venta / entregar a propietarios | L77: 0 | AA77: OK
A78: 78 | D78: Activos Intangibles | L78: 0 | AA78: =IF(OR(H78+I78-J78<0,L78<0),"ERROR","OK") -> OK
A79: =A78+1 -> 79 | D79: Inversiones en acciones y otras participaciones | L79: 0 | AA79: OK
A80: 80 | D80: Por disposición de otros instrumentos financieros | L80: 0 | AA80: OK
A81: 81 | D81: Otros | L81: 0 | AA81: OK
A82: 82 | C82: Ingresos por reversión de deterioro del valor | H82: =SUM(H83:H94) -> 0 | I82: =SUM(I83:I94) -> 0 | J82: =SUM(J83:J94) -> 0 | K82: =SUM(K83:K94) -> 0 | L82: =SUM(L83:L94) -> 0 | N82: =SUM(N83:N94) -> 0 | O82: 0 | P82: 0 | Q82: 0 | R82: 0 | S82: 0 | T82: 0 | AA82: =IF(OR(H82<0,L82<0),"ERROR","OK") -> OK | AC82: =IF(OR(AA82="ERROR",AB82="ERROR"),CONCATENATE("Error en el concepto ",C82," de la Hoja 3 Fila ",A82),"") -> 
A83: 83 | D83: Inventarios | L83: =H83+I83-J83+K83 -> 0 | AA83: OK | AB83: =IF(L83<>SUM(N83:T83),"ERROR","OK") -> OK | AC83: =IF(OR(AA83="ERROR",AB83="ERROR"),CONCATENATE("Error en el concepto ",D83," de la Hoja 3 Fila ",A83),"") -> 
A84: 84 | D84: Propiedades, planta y equipo | L84: 0 | AA84: OK | AB84: OK | AC84: =IF(OR(AA84="ERROR",AB84="ERROR"),CONCATENATE("Error en el concepto ",D84," de la Hoja 3 Fila ",A84),"") -> 
A85: 85 | D85: Activos intangibles | L85: 0 | AA85: OK | AB85: OK
A86: 86 | D86: Activos de exploración y evaluación de recursos minerales | L86: 0 | AA86: OK | AB86: OK
A87: 87 | D87: Propiedades de inversión medidas al modelo de costo | L87: 0 | AA87: OK | AB87: OK
A88: 88 | D88: Activos no corrientes mantenidos para la venta / entregar a propietarios | L88: 0 | AA88: OK | AB88: OK
A89: 89 | D89: Activos biológicos medidos al modelo de costo | L89: 0 | AA89: OK | AB89: OK
A90: 90 | D90: Bienes de arte y cultura | L90: 0 | AA90: OK | AB90: OK
A91: 91 | D91: Activos financieros (diferentes a cartera de crédito y operaciones de leasing) | L91: 0 | AA91: OK | AB91: OK
A92: 92 | D92: Cartera de crédito y operaciones de leasing | L92: 0 | AA92: OK | AB92: OK
A93: 93 | D93: Otras inversiones medidas al costo o el método de la participación | L93: 0 | AA93: OK | AB93: OK
A94: 94 | D94: Otros deterioros | L94: 0 | AA94: OK | AB94: OK
A95: 95 | C95: Ingresos por reversión de provisiones (pasivos de monto o fecha inciertos) | H95: =SUM(H96:H102) -> 0 | I95: =SUM(I96:I102) -> 0 | J95: =SUM(J96:J102) -> 0 | K95: 0 | L95: 0 | N95: =SUM(N96:N102) -> 0 | O95: 0 | P95: 0 | Q95: 0 | R95: =SUM(R96:R102) -> 0 | S95: 0 | T95: 0 | AA95: =IF(OR(H95<0,L95<0),"ERROR","OK") -> OK
A96: 96 | D96: Garantías | L96: =H96+I96-J96+K96 -> 0 | AA96: OK | AB96: OK | AC96: =IF(OR(AA96="ERROR",AB96="ERROR"),CONCATENATE("Error en el concepto ",D96," de la Hoja 3 Fila ",A96),"") -> 
A97: 97 | D97: Contratos onerosos | L97: 0 | AA97: OK | AB97: OK | AC97: =IF(OR(AA97="ERROR",AB97="ERROR"),CONCATENATE("Error en el concepto ",D97," de la Hoja 3 Fila ",A97),"") -> 
A98: 98 | D98: Litigios | L98: 0 | AA98: OK | AB98: OK
A99: 99 | D99: Reembolsos a clientes | L99: 0 | AA99: OK | AB99: OK
A100: 100 | D100: Reestructuraciones de negocios | L100: 0 | AA100: OK | AB100: OK
A101: 101 | D101: Pasivos contingentes asumidos en una combinación de negocios | L101: 0 | AA101: OK | AB101: OK
A102: 102 | D102: Otros | L102: 0 | AA102: OK | AB102: OK
A103: 103 | C103: Ingresos por reversión de pasivos por beneficios a los empleados | H103: =SUM(H104:H107) -> 0 | I103: =SUM(I104:I107) -> 0 | J103: =SUM(J104:J107) -> 0 | K103: =SUM(K104:K107) -> 0 | L103: =SUM(L104:L107) -> 0 | N103: =SUM(N104:N107) -> 0 | O103: 0 | P103: 0 | Q103: 0 | R103: 0 | S103: 0 | T103: 0 | AA103: =IF(OR(H103<0,L103<0),"ERROR","OK") -> OK
A104: 104 | D104: Beneficios de corto plazo | L104: =H104+I104-J104+K104 -> 0 | AA104: OK | AB104: OK | AC104: =IF(OR(AA104="ERROR",AB104="ERROR"),CONCATENATE("Error en el concepto ",D104," de la Hoja 3 Fila ",A104),"") -> 
A105: 105 | D105: Beneficios de largo plazo | L105: 0 | AA105: OK | AB105: OK | AC105: =IF(OR(AA105="ERROR",AB105="ERROR"),CONCATENATE("Error en el concepto ",D105," de la Hoja 3 Fila ",A105),"") -> 
A106: 106 | D106: Beneficios a empleados por terminación del vínculo laboral | L106: 0 | AA106: OK | AB106: OK
A107: 107 | D107: Beneficios a empleados post-empleo | L107: 0 | AA107: OK | AB107: OK
A108: 108 | C108: Otros ingresos | H108: =SUM(H109:H114) -> 0 | I108: =SUM(I109:I114) -> 0 | J108: =SUM(J109:J114) -> 0 | K108: =SUM(K109:K114)-K113 -> 0 | L108: =SUM(L109:L114)-L113 -> 0 | N108: =SUM(N109:N114)-N113 -> 0 | O108: 0 | P108: 0 | Q108: 0 | R108: 0 | S108: 0 | T108: 0 | AA108: =IF(OR(H108<0,L108<0),"ERROR","OK") -> OK | AC108: =IF(OR(AA108="ERROR",AB108="ERROR"),CONCATENATE("Error en el concepto ",C108," de la Hoja 3 Fila ",A108),"") -> 
A109: 109 | D109: Transferencias, subvenciones y ayudas gubernamentales | L109: =H109+I109-J109+K109 -> 0 | AA109: OK | AB109: OK
A110: 110 | D110: Donaciones, aportaciones y similares | L110: 0 | AA110: OK | AB110: OK
A111: 111 | D111: Reembolsos de compañías de seguros (indemnizaciones) | L111: 0 | AA111: OK | AB111: OK
A112: 112 | D112: Otras indemnizaciones | L112: 0 | AA112: OK | AB112: OK
A113: 113 | D113: Otras reversiones o recuperaciones | L113: 0 | AA113: OK | AB113: OK
A114: 114 | D114: Otros | L114: 0 | AA114: OK | AB114: OK
A115: 115 | C115: Ganancias netas en operaciones discontinuadas | J115: =H115+I115 -> 0 | L115: 0 | N115: 0 | O115: 0 | P115: 0 | Q115: 0 | T115: 0 | AA115: =IF(OR(H115+I115-J115<0,L115<0,J115<0),"ERROR","OK") -> OK | AB115: OK | AC115: =IF(OR(AA115="ERROR",AB115="ERROR"),CONCATENATE("Error en el concepto ",C115," de la Hoja 3 Fila ",A115),"") -> 
A116: 116 | C116: Ajustes fiscales | H116: =H117 -> 0 | I116: =I117 -> 0 | J116: =J117 -> 0 | K116: 0 | L116: 0 | N116: =N117 -> 0 | O116: 0 | P116: 0 | Q116: 0 | R116: 0 | S116: 0 | T116: 0
A117: 117 | D117: Adición de ingresos | H117: =SUM(H118:H121) -> 0 | I117: =SUM(I118:I121) -> 0 | J117: =SUM(J118:J121) -> 0 | K117: =SUM(K118:K121)-K118 -> 0 | L117: =SUM(L118:L121)-L118 -> 0 | N117: =SUM(N118:N121)-N118 -> 0 | O117: =SUM(O118:O121)-O118 -> 0 | P117: 0 | Q117: 0 | R117: 0 | S117: 0 | T117: 0
A118: 118 | E118: Recuperación de deducciones sin incidencia contable | L118: =H118+I118-J118+K118 -> 0 | AA118: OK | AB118: OK | AC118: =IF(OR(AA118="ERROR",AB118="ERROR"),CONCATENATE("Error en el concepto ",E118," de la Hoja 3 Fila ",A118),"") -> 
A119: 119 | E119: Intereses presuntos | L119: 0 | AA119: OK | AB119: OK | AC119: =IF(OR(AA119="ERROR",AB119="ERROR"),CONCATENATE("Error en el concepto ",E119," de la Hoja 3 Fila ",A119),"") -> 
A120: 120 | E120: Mayor ingreso - Precios de Transferencia | L120: 0 | AA120: OK | AB120: OK | AC120: =IF(OR(AA120="ERROR",AB120="ERROR"),CONCATENATE("Error en el concepto ",E120," de la Hoja 3 Fila ",A120),"") -> 
A121: 121 | E121: Otros ingresos fiscales y no incluidos contablemente | L121: 0 | AA121: OK | AB121: =IF(L121<>SUM(N121:T121),"ERROR","OK") -> OK | AC121: =IF(OR(AA121="ERROR",AB121="ERROR"),CONCATENATE("Error en el concepto ",E121," de la Hoja 3 Fila ",A121),"") -> 
A122: 122 | C122: Ingresos no constitutivos de renta ni ganancia ocasional | L122: 0 | S122: 0 | AA122: OK | AB122: =IF('H1 (Caratula)'!AQ21="S",(IF(L50+L53+L54>=L122,IF(SUM(N122:T122)=0,"OK","ERROR"),IF(L122-L50-L53-L54=SUM(N122:T122),"OK","ERROR"))),IF(L122<>SUM(N122:T122),"ERROR","OK")) -> OK | AC122: =IF(OR(AA122="ERROR",AB122="ERROR"),CONCATENATE("Error en el concepto ",C122," de la Hoja 3 Fila ",A122),"") -> 
A123: 123 | C123: TOTAL INGRESOS | H123: =H11+H58+H64+H73+H82+H95+H103+H108+H116+H115+H39+H47-H122 -> 0 | I123: =I11+I58+I64+I73+I82+I95+I103+I108+I116+I115+I39+I47-I122 -> 0 | J123: =J11+J58+J64+J82+J95+J103+J108+J116+J115+J39+J47-J122 -> 0 | K123: =K11+K58+K64+K82+K95+K103+K108+K116+K115+K39+K47-K122 -> 0 | L123: =L11+L58+L64+L82+L95+L103+L108+L116+L115+L39+L47-L122 -> 0 | N123: =N11+N58+N64+N82+N95+N103+N108+N116+N115+N39+N47-N122 -> 0 | O123: 0 | P123: 0 | Q123: 0 | R123: 0 | S123: =S11+S58+S64+S82+S95+S103+S108+S116+S115+S39+S47-S122 -> 0 | T123: 0 | AB123: =IF(AND(L122 <= L123 + L122,N122 <= N123 + N122,O122 <= O123 + O122,P122 <= P123 + P122,Q122 <= Q123 + Q122,R122 <= R123 + R122,S122 <= S123 + S122,T122 <= T123 + T122),"OK","ERROR") -> OK
A124: 124 | B124: COSTOS
A125: 125 | C125: Materias primas, reventa de bienes terminados y servicios | H125: =H127+H128+H129-H130+H131+H132+H133-H134+H135-H136+H137-H138+H139+H141+H126+H140 -> 0 | J125: =J127+J128+J129-J130+J131+J132+J133-J134+J135-J136+J137-J138+J139+J141+J126+J140 -> 0 | K125: 0 | L125: 0 | N125: =N127+N128+N129-N130+N131+N132+N133-N134+N135-N136+N137-N138+N139+N141+N126+N140 -> 0 | O125: 0 | P125: 0 | Q125: 0 | R125: 0 | S125: 0 | T125: 0 | AA125: =IF(OR(H125<0,L125<0),"ERROR","OK") -> OK
A126: 126 | D126: Costo de ventas calculado por el sistema permanente | L126: =H126+I126-J126+K126 -> 0 | AA126: OK | AB126: OK | AC126: =IF(OR(AA126="ERROR",AB126="ERROR"),CONCATENATE("Error en el concepto ",D126," de la Hoja 3 Fila ",A126),"") -> 
A127: 127 | D127: Materias primas (para procesos de producción) | G127: Inventario inicial | L127: 0 | AA127: OK | AB127: OK | AC127: =IF(OR(AA127="ERROR",AB127="ERROR"),CONCATENATE("Error en el concepto ",D127,G127," de la Hoja 3 Fila ",A127),"") -> 
A128: 128 | G128: compras locales | L128: 0 | AA128: OK | AB128: OK | AC128: =IF(OR(AA128="ERROR",AB128="ERROR"),CONCATENATE("Error en el concepto ",D127,G128," de la Hoja 3 Fila ",A128),"") -> 
A129: 129 | G129: Importaciones | L129: 0 | AA129: OK | AB129: OK | AC129: =IF(OR(AA129="ERROR",AB129="ERROR"),CONCATENATE("Error en el concepto ",D127,G129," de la Hoja 3 Fila ",A129),"") -> 
A130: 130 | G130: Inventario final | L130: 0 | AA130: OK | AB130: OK | AC130: =IF(OR(AA130="ERROR",AB130="ERROR"),CONCATENATE("Error en el concepto ",D127,G130," de la Hoja 3 Fila ",A130),"") -> 
A131: 131 | D131: Costos de los bienes vendidos (para comerciantes por reventa de bienes terminados) | G131: Inventario inicial | L131: 0 | AA131: OK | AB131: OK | AC131: =IF(OR(AA131="ERROR",AB131="ERROR"),CONCATENATE("Error en el concepto ",D131,G131," de la Hoja 3 Fila ",A131),"") -> 
A132: 132 | G132: compras locales | L132: 0 | AA132: OK | AB132: OK | AC132: =IF(OR(AA132="ERROR",AB132="ERROR"),CONCATENATE("Error en el concepto ",D131,G132," de la Hoja 3 Fila ",A132),"") -> 
A133: 133 | G133: Importaciones | L133: 0 | AA133: OK | AB133: OK | AC133: =IF(OR(AA133="ERROR",AB133="ERROR"),CONCATENATE("Error en el concepto ",D131,G133," de la Hoja 3 Fila ",A133),"") -> 
A134: 134 | G134: Inventario final | L134: 0 | AA134: OK | AB134: OK | AC134: =IF(OR(AA134="ERROR",AB134="ERROR"),CONCATENATE("Error en el concepto ",D131,G134," de la Hoja 3 Fila ",A134),"") -> 
A135: 135 | D135: Productos en proceso | G135: Inventario inicial | L135: 0 | AA135: OK | AB135: OK
A136: 136 | G136: Inventario final | L136: 0 | AA136: OK | AB136: OK | AC136: =IF(OR(AA136="ERROR",AB136="ERROR"),CONCATENATE("Error en el concepto ",D135,G136," de la Hoja 3 Fila ",A136),"") -> 
A137: 137 | D137: Producto terminado | G137: Inventario inicial | L137: 0 | AA137: OK | AB137: OK
A138: 138 | G138: Inventario final | L138: 0 | AA138: OK | AB138: OK | AC138: =IF(OR(AA138="ERROR",AB138="ERROR"),CONCATENATE("Error en el concepto ",D137,G138," de la Hoja 3 Fila ",A138),"") -> 
A139: 139 | D139: Costos en la prestación de servicios (para prestadores de servicios) | L139: 0 | AA139: OK | AB139: OK | AC139: =IF(OR(AA139="ERROR",AB139="ERROR"),CONCATENATE("Error en el concepto ",D139," de la Hoja 3 Fila ",A139),"") -> 
A140: 140 | D140: Otro sistema de determinación del costo de ventas | L140: 0 | AA140: OK | AB140: OK | AC140: =IF(OR(AA140="ERROR",AB140="ERROR"),CONCATENATE("Error en el concepto ",D140," de la Hoja 3 Fila ",A140),"") -> 
A141: 141 | D141: Ajustes | L141: 0 | AA141: OK | AB141: OK | AC141: =IF(OR(AA141="ERROR",AB141="ERROR"),CONCATENATE("Error en el concepto ",D141," de la Hoja 3 Fila ",A141),"") -> 
A142: 142 | C142: Mano de obra | H142: =SUM(H143:H146) -> 0 | J142: =SUM(J143:J146) -> 0 | K142: =SUM(K143:K146) -> 0 | L142: =SUM(L143:L146) -> 0 | N142: =SUM(N143:N146) -> 0 | O142: 0 | P142: 0 | Q142: 0 | R142: 0 | S142: 0 | T142: 0 | AA142: =IF(OR(H142<0,L142<0),"ERROR","OK") -> OK | AC142: =IF(OR(AA142="ERROR",AB142="ERROR"),CONCATENATE("Error en el concepto ",C142," de la Hoja 3 Fila ",A142),"") -> 
A143: =A142+1 -> 143 | D143: Beneficios a empleados | G143: De corto plazo | L143: =H143+I143-J143+K143 -> 0 | AA143: =IF(OR(H143+I143-J143<0,L143<0),"ERROR","OK") -> OK | AB143: =IF(L143<>SUM(N143:T143),"ERROR","OK") -> OK | AC143: =IF(OR(AA143="ERROR",AB143="ERROR"),CONCATENATE("Error en el concepto ",D143,G143," de la Hoja 3 Fila ",A143),"") -> 
A144: 144 | G144: De largo plazo | L144: 0 | AA144: OK | AB144: OK | AC144: =IF(OR(AA144="ERROR",AB144="ERROR"),CONCATENATE("Error en el concepto ",D143,G144," de la Hoja 3 Fila ",A144),"") -> 
A145: 145 | G145: Por terminación del vínculo laboral | L145: 0 | AA145: OK | AB145: OK | AC145: =IF(OR(AA145="ERROR",AB145="ERROR"),CONCATENATE("Error en el concepto ",D143,G145," de la Hoja 3 Fila ",A145),"") -> 
A146: 146 | G146: Post-empleo | L146: 0 | AA146: OK | AB146: OK | AC146: =IF(OR(AA146="ERROR",AB146="ERROR"),CONCATENATE("Error en el concepto ",D143,G146," de la Hoja 3 Fila ",A146),"") -> 
A147: 147 | C147: Depreciaciones, amortizaciones y deterioros | H147: =SUM(H148:H171) -> 0 | J147: =SUM(J148:J171) -> 0 | K147: =SUM(K148:K171) -> 0 | L147: =SUM(L148:L171) -> 0 | N147: =SUM(N148:N171) -> 0 | O147: 0 | P147: 0 | Q147: 0 | R147: 0 | S147: 0 | T147: 0 | AA147: =IF(OR(H147<0,L147<0),"ERROR","OK") -> OK
A148: 148 | D148: Depreciación propiedades, planta y equipo | G148: Del costo | L148: =H148+I148-J148+K148 -> 0 | AA148: OK | AB148: OK | AC148: =IF(OR(AA148="ERROR",AB148="ERROR"),CONCATENATE("Error en el concepto ",D148,G148," de la Hoja 3 Fila ",A148),"") -> 
A149: 149 | G149: Del ajuste acumulado por revaluaciones o reexpresiones | L149: 0 | AA149: OK | AB149: OK | AC149: =IF(OR(AA149="ERROR",AB149="ERROR"),CONCATENATE("Error en el concepto ",D148,G149," de la Hoja 3 Fila ",A149),"") -> 
A150: 150 | D150: Depreciación propiedades de inversión | G150: Del costo | L150: 0 | AA150: OK | AB150: OK | AC150: =IF(OR(AA150="ERROR",AB150="ERROR"),CONCATENATE("Error en el concepto ",D150,G150," de la Hoja 3 Fila ",A150),"") -> 
A151: 151 | G151: Del ajuste acumulado por revaluaciones o reexpresiones | L151: 0 | AA151: OK | AB151: OK | AC151: =IF(OR(AA151="ERROR",AB151="ERROR"),CONCATENATE("Error en el concepto ",D150,G151," de la Hoja 3 Fila ",A151),"") -> 
A152: 152 | D152: Depreciación activos biológicos | G152: Del costo | L152: 0 | AA152: OK | AB152: OK
A153: 153 | G153: Del ajuste acumulado por revaluaciones o reexpresiones | L153: 0 | AA153: OK | AB153: OK | AC153: =IF(OR(AA153="ERROR",AB153="ERROR"),CONCATENATE("Error en el concepto ",D152,G153," de la Hoja 3 Fila ",A153),"") -> 
A154: 154 | D154: Amortización activos intangibles | G154: Del costo | L154: 0 | AA154: OK | AB154: OK
A155: 155 | G155: Del ajuste acumulado por revaluaciones o reexpresiones | L155: 0 | AA155: OK | AB155: OK | AC155: =IF(OR(AA155="ERROR",AB155="ERROR"),CONCATENATE("Error en el concepto ",D154,G155," de la Hoja 3 Fila ",A155),"") -> 
A156: 156 | D156: Depreciación derechos de uso en arrendamientos operativos (NIIF 16) | L156: 0 | AA156: OK | AB156: OK | AC156: =IF(OR(AA156="ERROR",AB156="ERROR"),CONCATENATE("Error en el concepto ",D156," de la Hoja 3 Fila ",A156),"") -> 
A157: 157 | D157: Otras depreciaciones y amortizaciones | G157: Del costo | L157: 0 | AA157: OK | AB157: OK
A158: 158 | G158: Del ajuste acumulado por revaluaciones o reexpresiones | L158: 0 | AA158: OK | AB158: OK | AC158: =IF(OR(AA158="ERROR",AB158="ERROR"),CONCATENATE("Error en el concepto ",D157,G158," de la Hoja 3 Fila ",A158),"") -> 
A159: 159 | D159: Deterioro del valor de los activos | F159: Inventarios | L159: 0 | AA159: OK | AB159: OK | AC159: =IF(OR(AA159="ERROR",AB159="ERROR"),CONCATENATE("Error en el concepto ",D159,F159," de la Hoja 3 Fila ",A159),"") -> 
A160: 160 | F160: Propiedades, planta y equipo | L160: 0 | AA160: OK | AB160: OK | AC160: =IF(OR(AA160="ERROR",AB160="ERROR"),CONCATENATE("Error en el concepto ",D159,F160," de la Hoja 3 Fila ",A160),"") -> 
A161: 161 | F161: Activos intangibles | L161: 0 | AA161: OK | AB161: OK | AC161: =IF(OR(AA161="ERROR",AB161="ERROR"),CONCATENATE("Error en el concepto ",D159,F161," de la Hoja 3 Fila ",A161),"") -> 
A162: 162 | F162: Activos de exploración y evaluación de recursos minerales | L162: 0 | AA162: OK | AB162: OK | AC162: =IF(OR(AA162="ERROR",AB162="ERROR"),CONCATENATE("Error en el concepto ",D159,F162," de la Hoja 3 Fila ",A162),"") -> 
A163: 163 | F163: Propiedades de inversión medidas al modelo de costo | L163: 0 | AA163: OK | AB163: OK | AC163: =IF(OR(AA163="ERROR",AB163="ERROR"),CONCATENATE("Error en el concepto ",D159,F163," de la Hoja 3 Fila ",A163),"") -> 
A164: 164 | F164: Activos no corrientes mantenidos para la venta / distribuir a los propietarios | L164: 0 | AA164: OK | AB164: OK | AC164: =IF(OR(AA164="ERROR",AB164="ERROR"),CONCATENATE("Error en el concepto ",D159,F164," de la Hoja 3 Fila ",A164),"") -> 
A165: 165 | F165: Activos biológicos medidos al modelo de costo | L165: 0 | AA165: OK | AB165: OK | AC165: =IF(OR(AA165="ERROR",AB165="ERROR"),CONCATENATE("Error en el concepto ",D159,F165," de la Hoja 3 Fila ",A165),"") -> 
A166: 166 | F166: Bienes de arte y cultura medidos al modelo de costo | L166: 0 | AA166: OK | AB166: OK | AC166: =IF(OR(AA166="ERROR",AB166="ERROR"),CONCATENATE("Error en el concepto ",D159,F166," de la Hoja 3 Fila ",A166),"") -> 
A167: 167 | F167: Activos financieros (diferentes a cartera de crédito y operaciones de leasing) | L167: 0 | AA167: OK | AB167: OK | AC167: =IF(OR(AA167="ERROR",AB167="ERROR"),CONCATENATE("Error en el concepto ",D159,F167," de la Hoja 3 Fila ",A167),"") -> 
A168: 168 | F168: Cartera de crédito y operaciones de leasing | L168: 0 | AA168: OK | AB168: OK | AC168: =IF(OR(AA168="ERROR",AB168="ERROR"),CONCATENATE("Error en el concepto ",D159,F168," de la Hoja 3 Fila ",A168),"") -> 
A169: 169 | F169: Otras inversiones medidas al costo o por el método de la participación | L169: 0 | AA169: OK | AB169: OK | AC169: =IF(OR(AA169="ERROR",AB169="ERROR"),CONCATENATE("Error en el concepto ",D159,F169," de la Hoja 3 Fila ",A169),"") -> 
A170: 170 | F170: Derechos de uso en arrendamientos operativos (NIIF 16) | L170: 0 | AA170: OK | AB170: OK | AC170: =IF(OR(AA170="ERROR",AB170="ERROR"),CONCATENATE("Error en el concepto ",D159,F170," de la Hoja 3 Fila ",A170),"") -> 
A171: 171 | F171: Otros deterioros | L171: 0 | AA171: OK | AB171: OK | AC171: =IF(OR(AA171="ERROR",AB171="ERROR"),CONCATENATE("Error en el concepto ",D159,F171," de la Hoja 3 Fila ",A171),"") -> 
A172: 172 | C172: Otros costos | H172: =SUM(H173:H184) -> 0 | J172: =SUM(J173:J184) -> 0 | K172: 0 | L172: 0 | N172: =SUM(N173:N184) -> 0 | O172: 0 | P172: 0 | Q172: 0 | R172: 0 | S172: 0 | T172: 0 | AA172: =IF(OR(H172<0,L172<0),"ERROR","OK") -> OK
A173: 173 | D173: Arrendamientos | L173: =H173+I173-J173+K173 -> 0 | AA173: OK | AB173: OK | AC173: =IF(OR(AA173="ERROR",AB173="ERROR"),CONCATENATE("Error en el concepto ",D173," de la Hoja 3 Fila ",A173),"") -> 
A174: 174 | D174: Seguros | L174: 0 | AA174: OK | AB174: OK | AC174: =IF(OR(AA174="ERROR",AB174="ERROR"),CONCATENATE("Error en el concepto ",D174," de la Hoja 3 Fila ",A174),"") -> 
A175: 175 | D175: Servicios | L175: 0 | AA175: OK | AB175: OK | AC175: =IF(OR(AA175="ERROR",AB175="ERROR"),CONCATENATE("Error en el concepto ",D175," de la Hoja 3 Fila ",A175),"") -> 
A176: 176 | D176: Honorarios | L176: 0 | AA176: OK | AB176: OK | AC176: =IF(OR(AA176="ERROR",AB176="ERROR"),CONCATENATE("Error en el concepto ",D176," de la Hoja 3 Fila ",A176),"") -> 
A177: 177 | D177: Servicios técnicos | F177: Vinculados económicos | L177: 0 | AA177: OK | AB177: OK | AC177: =IF(OR(AA177="ERROR",AB177="ERROR"),CONCATENATE("Error en el concepto ",D177,F177," de la Hoja 3 Fila ",A177),"") -> 
A178: 178 | F178: Jurisdicciones no cooperantes, de baja o nula imposición y regímenes tributarios preferenciales | L178: 0 | AA178: OK | AB178: OK | AC178: =IF(OR(AA178="ERROR",AB178="ERROR"),CONCATENATE("Error en el concepto ",D177,F178," de la Hoja 3 Fila ",A178),"") -> 
A179: 179 | F179: No vinculados | L179: 0 | AA179: OK | AB179: OK | AC179: =IF(OR(AA179="ERROR",AB179="ERROR"),CONCATENATE("Error en el concepto ",D177,F179," de la Hoja 3 Fila ",A179),"") -> 
A180: 180 | D180: Asistencia técnica | F180: Vinculados económicos | L180: 0 | AA180: OK | AB180: OK | AC180: =IF(OR(AA180="ERROR",AB180="ERROR"),CONCATENATE("Error en el concepto ",D180,F180," de la Hoja 3 Fila ",A180),"") -> 
A181: 181 | F181: Jurisdicciones no cooperantes, de baja o nula imposición y regímenes tributarios preferenciales | L181: 0 | AA181: OK | AB181: OK | AC181: =IF(OR(AA181="ERROR",AB181="ERROR"),CONCATENATE("Error en el concepto ",D180,F181," de la Hoja 3 Fila ",A181),"") -> 
A182: 182 | F182: No vinculados | L182: 0 | AA182: OK | AB182: OK | AC182: =IF(OR(AA182="ERROR",AB182="ERROR"),CONCATENATE("Error en el concepto ",D180,F182," de la Hoja 3 Fila ",A182),"") -> 
A183: 183 | D183: Otros conceptos reconocidos como costo en el estado de resultados | L183: 0 | AA183: OK | AB183: OK | AC183: =IF(OR(AA183="ERROR",AB183="ERROR"),CONCATENATE("Error en el concepto ",D183," de la Hoja 3 Fila ",A183),"") -> 
A184: 184 | D184: Otros costos fiscales no reconocidos contablemente | L184: 0 | AA184: OK | AB184: OK | AC184: =IF(OR(AA184="ERROR",AB184="ERROR"),CONCATENATE("Error en el concepto ",D184," de la Hoja 3 Fila ",A184),"") -> 
A185: 185 | C185: Menor costo - ajuste Precios de Transferencia | L185: 0 | AA185: =IF(L185<=L186+L185,"OK","ERROR") -> OK | AB185: OK | AC185: =IF(OR(AA185="ERROR",AB185="ERROR"),CONCATENATE("Error en el concepto ",C185," El ajuste en el costo por precios de transferencia no puede ser mayor a la suma de los costos del periodo. Hoja 3 Fila ",A185),"") -> 
A186: 186 | C186: TOTAL COSTOS | H186: =H125+H142+H147+H172-H185 -> 0 | I186: =I125+I142+I147+I172-I185 -> 0 | J186: 0 | K186: 0 | L186: 0 | N186: =N125+N142+N147+N172-N185 -> 0 | O186: 0 | P186: 0 | Q186: 0 | R186: 0 | S186: 0 | T186: 0 | AB186: =IF(AND(L185 <= L186 + L185,N185 <= N186 + N185,O185 <= O186 + O185,P185 <= P186 + P185,Q185 <= Q186 + Q185,R185 <= R186 + R185,S185 <= S186 + S185,T185 <= T186 + T185),"OK","ERROR") -> OK
A187: 187 | B187: GASTOS
A188: 188 | C188: De administración | H188: =H189+H194+H215 -> 0 | J188: =J189+J194+J215 -> 0 | K188: =K189+K194+K215 -> 0 | L188: =L189+L194+L215 -> 0 | N188: =N189+N194+N215 -> 0 | O188: 0 | P188: 0 | Q188: 0 | R188: 0 | S188: 0 | T188: 0 | AA188: OK
A189: 189 | D189: Mano de obra | H189: =SUM(H190:H193) -> 0 | J189: =SUM(J190:J193) -> 0 | K189: =SUM(K190:K193) -> 0 | L189: =SUM(L190:L193) -> 0 | N189: =SUM(N190:N193) -> 0 | O189: 0 | P189: 0 | Q189: 0 | R189: 0 | S189: 0 | T189: 0 | AA189: OK | AC189: =IF(OR(AA189="ERROR",AB189="ERROR"),CONCATENATE("Error en el concepto ",D189," de la Hoja 3 Fila ",A189),"") -> 
A190: 190 | E190: Beneficios a empleados | G190: De corto plazo | L190: =H190+I190-J190+K190 -> 0 | AA190: OK | AB190: OK | AC190: =IF(OR(AA190="ERROR",AB190="ERROR"),CONCATENATE("Error en el concepto ",E190,G190," de la Hoja 3 Fila ",A190),"") -> 
A191: 191 | G191: De largo plazo | L191: 0 | AA191: OK | AB191: OK | AC191: =IF(OR(AA191="ERROR",AB191="ERROR"),CONCATENATE("Error en el concepto ",E190,G191," de la Hoja 3 Fila ",A191),"") -> 
A192: 192 | G192: Por terminación del vínculo laboral | L192: 0 | AA192: OK | AB192: OK | AC192: =IF(OR(AA192="ERROR",AB192="ERROR"),CONCATENATE("Error en el concepto ",E190,G192," de la Hoja 3 Fila ",A192),"") -> 
A193: 193 | G193: Post-empleo | L193: 0 | AA193: OK | AB193: OK | AC193: =IF(OR(AA193="ERROR",AB193="ERROR"),CONCATENATE("Error en el concepto ",E190,G193," de la Hoja 3 Fila ",A193),"") -> 
A194: 194 | D194: Otros gastos de administración | H194: =SUM(H195:H214) -> 0 | J194: =SUM(J195:J214) -> 0 | K194: 0 | L194: 0 | N194: =SUM(N195:N214) -> 0 | O194: 0 | P194: 0 | Q194: 0 | R194: 0 | S194: 0 | T194: 0 | AA194: =IF(OR(H194<0,L194<0),"ERROR","OK") -> OK | AC194: =IF(OR(AA194="ERROR",AB194="ERROR"),CONCATENATE("Error en el concepto ",D194," de la Hoja 3 Fila ",A194),"") -> 
A195: 195 | E195: Impuestos distintos al impuesto de renta y complementarios | L195: =H195+I195-J195+K195 -> 0 | AA195: OK | AB195: OK | AC195: =IF(OR(AA195="ERROR",AB195="ERROR"),CONCATENATE("Error en el concepto ",E195," de la Hoja 3 Fila ",A195),"") -> 
A196: 196 | E196: Arrendamientos operativos | L196: 0 | AA196: OK | AB196: OK | AC196: =IF(OR(AA196="ERROR",AB196="ERROR"),CONCATENATE("Error en el concepto ",E196," de la Hoja 3 Fila ",A196),"") -> 
A197: 197 | E197: Contribuciones y afiliaciones | L197: 0 | AA197: OK | AB197: OK | AC197: =IF(OR(AA197="ERROR",AB197="ERROR"),CONCATENATE("Error en el concepto ",E197," de la Hoja 3 Fila ",A197),"") -> 
A198: 198 | E198: Honorarios | L198: 0 | AA198: OK | AB198: OK | AC198: =IF(OR(AA198="ERROR",AB198="ERROR"),CONCATENATE("Error en el concepto ",E198," de la Hoja 3 Fila ",A198),"") -> 
A199: 199 | E199: Seguros | L199: 0 | AA199: OK | AB199: OK | AC199: =IF(OR(AA199="ERROR",AB199="ERROR"),CONCATENATE("Error en el concepto ",E199," de la Hoja 3 Fila ",A199),"") -> 
A200: 200 | E200: Servicios administrativos | G200: Vinculados económicos | L200: 0 | AA200: OK | AB200: OK | AC200: =IF(OR(AA200="ERROR",AB200="ERROR"),CONCATENATE("Error en el concepto ",E200,G200," de la Hoja 3 Fila ",A200),"") -> 
A201: 201 | G201: Jurisdicciones no cooperantes, de baja o nula imposición y regímenes tributarios preferenciales | L201: 0 | AA201: OK | AB201: OK | AC201: =IF(OR(AA201="ERROR",AB201="ERROR"),CONCATENATE("Error en el concepto ",E200,G201," de la Hoja 3 Fila ",A201),"") -> 
A202: 202 | G202: No vinculados | L202: 0 | AA202: OK | AB202: OK | AC202: =IF(OR(AA202="ERROR",AB202="ERROR"),CONCATENATE("Error en el concepto ",E200,G202," de la Hoja 3 Fila ",A202),"") -> 
A203: 203 | E203: Regalías | G203: Vinculados económicos | L203: 0 | AA203: OK | AB203: OK | AC203: =IF(OR(AA203="ERROR",AB203="ERROR"),CONCATENATE("Error en el concepto ",E203,G203," de la Hoja 3 Fila ",A203),"") -> 
A204: 204 | G204: Jurisdicciones no cooperantes, de baja o nula imposición y regímenes tributarios preferenciales | L204: 0 | AA204: OK | AB204: OK | AC204: =IF(OR(AA204="ERROR",AB204="ERROR"),CONCATENATE("Error en el concepto ",E203,G204," de la Hoja 3 Fila ",A204),"") -> 
A205: 205 | G205: No vinculados | L205: 0 | AA205: OK | AB205: OK | AC205: =IF(OR(AA205="ERROR",AB205="ERROR"),CONCATENATE("Error en el concepto ",E203,G205," de la Hoja 3 Fila ",A205),"") -> 
... 383 more rows

Sheet H4 (Impuesto Diferido) (hidden)
E1: Activos y pasivos por impuestos diferidos
D7: val1 | E7: val2 | F7: val3 | G7: val4 | H7: val5 | I7: val6 | J7: val7 | K7: val8 | L7: val9
B8: 1. Impuestos diferidos provenientes de diferencias temporarias
A10: NUM | B10: Concepto | D10: Base contable | E10: Base Fiscal | F10: Diferencia Temporaria | G10: Diferencia Permanente | H10: Saldo impuesto diferido a 31 -DIC vigencia actual | I10: Saldo impuesto diferido a 31 -DIC vigencia anterior | J10: Variación | K10: Tasa fiscal aplicada
AA11: ERROR EN DIFERENCIA TEMPORARIA Y PERMANENTE | AB11: Mensaje
A12: 1 | B12: Activo (Diferencias temporarias deducibles)
A13: =A12+12 -> 13 | C13: Efectivo y equivalentes al efectivo | J13: =I13-H13 -> 0 | K13: =IF(F13=" ",0,IF(F13=0,0,H13/F13)) -> 0 | AA13: =IF(ABS($F13+$G13)=ABS($D13-$E13),"OK","ERROR") -> OK | AB13: =IF((AA13="Error"),CONCATENATE("Error en el concepto ",C13," de la Hoja 4 Fila ",A13),"") -> 
A14: =A13+1 -> 14 | C14: Inversiones e instrumentos derivados | J14: 0 | K14: =IF(F14=" ",0,IF(F14=0,0,H14/F14)) -> 0 | AA14: =IF(ABS($F14+$G14)=ABS($D14-$E14),"OK","ERROR") -> OK | AB14: =IF((AA14="Error"),CONCATENATE("Error en el concepto ",C14," de la Hoja 4 Fila ",A14),"") -> 
A15: 15 | C15: Cuentas por cobrar | J15: 0 | K15: 0 | AA15: OK
A16: 16 | C16: Inventarios | J16: 0 | K16: 0 | AA16: OK
A17: 17 | C17: Propiedades, planta y equipo | J17: 0 | K17: 0 | AA17: OK
A18: 18 | C18: Activos intangibles | J18: 0 | K18: 0 | AA18: OK
A19: 19 | C19: Propiedades de inversión | J19: 0 | K19: 0 | AA19: OK
A20: 20 | C20: Activos biológicos | J20: 0 | K20: 0 | AA20: OK
A21: 21 | C21: Activos no corrientes mantenidos para la venta / entregar a propietarios | J21: 0 | K21: 0 | AA21: OK
A22: 22 | C22: Pasivos financieros y cuentas por pagar | J22: 0 | K22: 0 | AA22: OK
A23: 23 | C23: Impuestos, gravámenes y tasas | J23: 0 | K23: 0 | AA23: OK
A24: 24 | C24: Beneficios a Empleados | J24: 0 | K24: 0 | AA24: OK
A25: 25 | C25: Provisiones | J25: 0 | K25: 0 | AA25: OK
A26: 26 | C26: Otros Pasivos Anticipos y avances recibidos | J26: 0 | K26: 0 | AA26: OK
A27: 27 | C27: Operaciones con títulos y derivados | J27: 0 | K27: 0 | AA27: OK
A28: 28 | C28: Pérdidas fiscales y/o excesos de renta presuntiva | J28: 0 | K28: 0 | AA28: OK
A29: 29 | C29: Activos reconocidos solamente para fines fiscales | J29: 0 | K29: 0 | AA29: OK
A30: 30 | C30: Otros activos | J30: 0 | K30: 0 | AA30: OK
A31: 31 | C31: Valor total | H31: =SUM(H13:H30) -> 0 | I31: =SUM(I13:I30) -> 0 | J31: =SUM(J13:J30) -> 0 | AA31: =IF('H2 (ESF - Patrimonio)'!G83='H4 (Impuesto Diferido)'!H31,"OK","ERROR") -> OK | AB31: =IF((AA31="Error"),CONCATENATE("El total del saldo del activo por impuesto diferido (H4 - celda H31) debe ser igual al valor de la sección Hoja 2 casilla G83 Activos por impuestos diferidos ",),"") -> 
A32: 32 | B32: Pasivo (Diferencias temporarias imponibles)
A33: 33 | C33: Efectivo y equivalentes al efectivo | J33: =I33-H33 -> 0 | K33: =IF(F33=" ",0,IF(F33=0,0,H33/F33)) -> 0 | AA33: OK
A34: 34 | C34: Inversiones e instrumentos derivados | J34: 0 | K34: =IF(F34=" ",0,IF(F34=0,0,H34/F34)) -> 0 | AA34: OK
A35: 35 | C35: Cuentas por cobrar | J35: 0 | K35: 0 | AA35: OK
A36: 36 | C36: Inventarios | J36: 0 | K36: 0 | AA36: OK
A37: 37 | C37: Propiedades, planta y equipo | J37: 0 | K37: 0 | AA37: OK
A38: 38 | C38: Activos intangibles | J38: 0 | K38: 0 | AA38: OK
A39: 39 | C39: Propiedades de inversión | J39: 0 | K39: 0 | AA39: OK
A40: 40 | C40: Activos biológicos | J40: 0 | K40: 0 | AA40: OK
A41: 41 | C41: Activos no corrientes mantenidos para la venta / entregar a propietarios | J41: 0 | K41: 0 | AA41: OK
A42: 42 | C42: Pasivos financieros y cuentas por pagar | J42: 0 | K42: 0 | AA42: OK
A43: 43 | C43: Impuestos, gravámenes y tasas | J43: 0 | K43: 0 | AA43: OK
A44: 44 | C44: Beneficios a Empleados | J44: 0 | K44: 0 | AA44: OK
A45: 45 | C45: Provisiones | J45: 0 | K45: 0 | AA45: OK
A46: 46 | C46: Otros Pasivos Anticipos y avances recibidos | J46: 0 | K46: 0 | AA46: OK
A47: 47 | C47: Operaciones con títulos y derivados | J47: 0 | K47: 0 | AA47: OK
A48: 48 | C48: Pérdidas fiscales y/o excesos de renta presuntiva | J48: 0 | K48: 0 | AA48: OK
A49: 49 | C49: Activos reconocidos solamente para fines fiscales | J49: 0 | K49: 0 | AA49: OK
A50: 50 | C50: Otros activos | J50: 0 | K50: 0 | AA50: OK
A51: 51 | C51: Valor total | H51: =SUM(H33:H50) -> 0 | I51: =SUM(I33:I50) -> 0 | J51: =SUM(J33:J50) -> 0 | AA51: =IF('H2 (ESF - Patrimonio)'!G173='H4 (Impuesto Diferido)'!H51,"OK","ERROR") -> OK | AB51: =IF((AA51="Error"),CONCATENATE("El total del saldo del pasivo por impuesto diferido (H4 – celda H51) debe ser igual al valor de la Hoja 2 casilla G173 Pasivos por Impuestos Diferidos ",),"") -> 
B55: 2. Activos por créditos tributarios (saldos a favor e Impuestos pagados en el exterior)
A57: NUM | B57: Tipo de crédito tributario | D57: Saldo al 31 -DIC vigencia actual | E57: Saldo al 31-DIC vigencia anterior | F57: Variación | G57: Explicación de la variación
G58: Reducción (compensación / aplicación) | H58: Incremento (generado en el periodo) | I58: Correcciones en declaraciones anteriores | K58: Ajustes contables por correcciones valorativas
I59: Mayor valor | J59: Menor valor | K59: Mayor valor | L59: Menor valor
A60: =60 -> 60 | B60: Saldos a favor | F60: =D60-E60 -> 0
A61: =A60+1 -> 61 | B61: Impuestos pagados en el exterior | F61: =D61-E61 -> 0
B64: 3. Detalle de compensación de pérdidas fiscales
A67: NUM | B67: AÑO | D67: Pérdida fiscal acumulada por compensar al inicio del periodo | E67: Pérdida fiscal generada en el periodo (+) | F67: Pérdida fiscal compensada en el período (-) | G67: Valores no compensados por caducidad (-) | H67: Ajustes por corrección de la declaración | J67: Pérdida fiscal acumulada por compensar al final del periodo | K67: Saldo activo por impuesto diferido al final del período
H68: Mayor valor | I68: Menor valor
A69: 69 | B69: 2017 | J69: =D69+E69-F69-G69+H69-I69 -> 0 | AA69: =IF(J69<0,"ERROR","OK") -> OK | AB69: =IF((AA69="Error"),CONCATENATE("Error en el Año ",B69," de la Hoja 4 Fila ",A69),"") -> 
A70: =A69+1 -> 70 | B70: 2018 | D70: =J69 -> 0 | J70: =D70+E70-F70-G70+H70-I70 -> 0 | AA70: =IF(J70<0,"ERROR","OK") -> OK
A71: =A70+1 -> 71 | B71: 2019 | D71: =J70 -> 0 | J71: 0 | AA71: OK
A72: 72 | B72: 2020 | D72: 0 | J72: 0 | AA72: OK
A73: 73 | B73: 2021 | D73: 0 | J73: 0 | AA73: OK
A74: 74 | B74: 2022 | D74: 0 | J74: 0 | AA74: OK
A75: 75 | B75: 2023 | D75: 0 | J75: 0 | AA75: OK
A76: 76 | B76: 2024 | D76: 0 | J76: 0 | AA76: OK
A77: 77 | B77: 2025 | D77: 0 | J77: 0 | AA77: OK
A78: 78 | B78: 2026 | D78: 0 | J78: 0 | AA78: OK
A79: 79 | B79: 2027 | D79: 0 | J79: 0 | AA79: OK
A80: 80 | B80: 2028 | D80: 0 | J80: 0 | AA80: OK
A81: 81 | B81: 2029 | D81: 0 | J81: 0 | AA81: OK
B84: 4. Detalle de compensación por exceso de renta presuntiva
A87: NUM | B87: AÑO | D87: Valor acumulado por compensar al inicio del periodo | E87: Valor generado en el periodo (+) | F87: Valor compensado en el período (-) | G87: Valores no compensados por caducidad (-) | H87: Ajustes por corrección de la declaración | J87: Valor acumulado por compensar al final del periodo | K87: Saldo activo por impuesto diferido al final del período
H88: Mayor valor | I88: Menor valor
A89: =89 -> 89 | B89: 2017 | J89: =D89+E89-F89-G89+H89-I89 -> 0 | AA89: OK
A90: =A89+1 -> 90 | B90: 2018 | D90: =J89 -> 0 | J90: =D90+E90-F90-G90+H90-I90 -> 0 | AA90: OK
A91: =A90+1 -> 91 | B91: 2019 | D91: =J90 -> 0 | J91: 0 | AA91: OK
A92: 92 | B92: 2020 | D92: 0 | J92: 0 | AA92: OK
A93: 93 | B93: 2021 | D93: 0 | J93: 0 | AA93: OK
A94: 94 | B94: 2022 | D94: 0 | J94: 0 | AA94: OK
A95: 95 | B95: 2023 | D95: 0 | J95: 0 | AA95: OK

Sheet H5 (Ingresos y Facturación) (hidden)
D1: Conciliación ingreso contable (devengado) y facturación emitida
C7: val1 | D7: val2 | E7: val3 | F7: val4 | G7: val5 | H7: val6 | I7: val7 | J7: val8 | K7: val9 | L7: val10 | M7: val11 | N7: val12
A9: NUM | B9: Concepto | C9: Pasivo por ingreso diferido | G9: Facturación emitida en el período | L9: Ingreso contable devengado en el período
C10: Saldo al inicio del período | D10: Registrado como ingreso contable en el período | E10: Generado en el período | F10: Saldo al final del período | G10: Devengada como ingreso en períodos anteriores | H10: Devengada como ingresos del periodo | I10: Registrada como pasivo por ingreso diferido | J10: Solo facturado (No ha generado ingreso ni pasivo diferido) | K10: Valor total | L10: Sin facturar | M10: Facturado períodos anteriores | N10: Valor total
C11: 1 | D11: 2 | E11: 3 | F11: 4=1-2+3 | G11: 5 | H11: 6 | I11: 7 | J11: 8 | K11: 9=5+6+7+8 | L11: 10 | M11: 11 | N11: 12=6+10+11
A12: 12 | B12: Venta de bienes | F12: =C12-D12+E12 -> 0 | K12: =G12+H12+I12+J12 -> 0 | N12: =H12+L12+M12 -> 0 | AA12: =IF(C12-D12+E12<0,"ERROR","OK") -> OK | AB12: =IF((AA12="Error"),CONCATENATE("El saldo al final del período del pasivo por ingreso deferido no puede ser negativo ",B12," de la Hoja 5 Fila ",A12),"") -> 
A13: =A12+1 -> 13 | B13: Prestación de servicios | F13: =C13-D13+E13 -> 0 | K13: =G13+H13+I13+J13 -> 0 | N13: =H13+L13+M13 -> 0 | AA13: =IF(C13-D13+E13<0,"ERROR","OK") -> OK | AB13: =IF((AA13="Error"),CONCATENATE("El saldo al final del período del pasivo por ingreso deferido no puede ser negativo ",B13," de la Hoja 5 Fila ",A13),"") -> 
A14: =A13+1 -> 14 | B14: Otros ingresos | F14: 0 | K14: 0 | N14: 0 | AA14: OK
A15: 15 | B15: Ingresos para terceros | F15: 0 | K15: 0 | N15: 0
A16: 16 | B16: Ajustes al valor facturado (descuentos, notas) | F16: 0 | K16: 0 | N16: 0
A17: 17 | B17: TOTAL | C17: =SUM(C12:C15)-C16 -> 0 | D17: =SUM(D12:D15)-D16 -> 0 | E17: 0 | F17: 0 | G17: 0 | H17: 0 | I17: 0 | J17: 0 | K17: 0 | L17: 0 | M17: 0 | N17: 0 | AA17: =IF(OR(G17<0,H17<0,I17<0,J17<0,L17<0,M17<0),"ERROR","OK") -> OK

Sheet DescripcionAyuda (hidden)
A2: Hoja | B2: Mensaje de ayuda
A3: H1 (Caratula) | B3: Mensaje de ayuda para la H1 (Caratula)
A4: H2 (ESF - Patrimonio) | B4: Digite solamente números enteros positivos sin aproximaciones a mil (sin decimales y sin separadores de miles), excepto para la columna EFECTO CONVERSION donde se pueden incluir valores negativos. Si su moneda funcional es distinta al peso colombiano, Selecciones S en H1 (Caratula), Casilla 43, para habilitar el ingreso de datos en la columna EFECTO CONVERSION. El resultado de VALOR CONTABLE + EFECTO CONVERSION – MENOR VALOR FISCAL debe ser mayor o igual a cero. El valor acumulado de la Depreciación o amortización más el deterioro acumulado, no puede ser mayor al valor del activo al cual está asociado.
A5: H3 (ERI - Renta Liquida) | B5: Digite solamente números enteros positivos sin aproximaciones a mil (sin decimales y sin separadores de miles), excepto para la columna EFECTO CONVERSION donde se pueden incluir valores negativos. Si su moneda funcional es distinta al peso colombiano, Selecciones S en H1 (Caratula), Casilla 43, para habilitar el ingreso de datos en la columna EFECTO CONVERSION. El resultado de VALOR CONTABLE + EFECTO CONVERSION – MENOR VALOR FISCAL debe ser mayor o igual a cero. La sumatoria de la distribución realizada en la sección RENTA LIQUIDA POR TARIFA debe ser igual al resultado obtenido en la columna VALOR FISCAL TOTAL
A6: H4 (Impuesto Diferido) | B6: Digite solamente números enteros positivos sin aproximaciones a mil (sin decimales y sin separadores de miles).
A7: H5 (Ingresos y Facturación) | B7: Digite solamente números enteros positivos sin aproximaciones a mil (sin decimales y sin separadores de miles).
A8: H6 (Activos fijos) | B8: Digite solamente números enteros positivos sin aproximaciones a mil (sin decimales y sin separadores de miles), excepto para la columna AJUSTE POR REVALUACIONES O REEXPRESIONES, donde se pueden incluir valores negativos. En esta sección la columna EFECTO CONVERSION está inhabilitada independientemente de que su moneda funcional sea diferente del peso colombiano. El importe neto de los activos al final del período no puede ser menor a cero.
A9: H7 (Resumen ESF-ERI) | B9: Digite solamente números enteros positivos sin aproximaciones a mil (sin decimales y sin separadores de miles), excepto para la columna EFECTO CONVERSION donde se pueden incluir valores negativos. Si su moneda funcional es distinta al peso colombiano, Selecciones S en H1 (Caratula), Casilla 43, para habilitar el ingreso de datos en la columna EFECTO CONVERSION. El importe neto de los activos al final del período no puede ser menor a cero.

Sheet H6 (Activos fijos) (hidden)
F1: Conciliación Propiedades, planta y equipo (PPE), propiedades de inversión (PI), activos no corrientes mantenidos para la venta o para distribuir a los propietarios (ANCMV) y activos Intangibles
D7: val1 | E7: val2 | F7: val3 | G7: val4 | H7: val5 | I7: val6 | J7: val7 | K7: val8 | L7: val9 | M7: val10 | N7: val11 | O7: val12 | P7: val13 | Q7: val14 | R7: val15 | S7: val16 | T7: val17 | U7: val18 | V7: val19 | W7: val20 | X7: val21 | Y7: val22 | Z7: val23 | AA7: val24 | AB7: val25 | AC7: val26 | AD7: val27 | AE7: val28 | AF7: val29 | AG7: val30 | AH7: val31
A8: NUM | B8: CONCEPTO | D8: DATOS CONTABLES | X8: DATOS FISCALES
D9: Valor total, incluyendo arrendamiento financiero o leasing | U9: Datos informativos | X9: Valor total, incluyendo arrendamiento financiero o leasing financiero | AE9: Datos Informativos: Valor activos adquiridos mediante arrendamiento financiero
D10: Importe al comienzo del periodo (No incluye Depreciación, amortización o deterioro) | G10: Incrementos | I10: Disminuciones | K10: Depreciación o amortización acumulada al final del período | N10: Deterioro acumulado al final del período | O10: Importe Neto al final del período | Q10: Gasto del período por depreciación o amortización | S10: Gasto del período por deterioro | T10: Ingresos del período por recuperación del deterioro | U10: Valor de activos adquiridos mediante arrendamiento financiero o Leasing | V10: Desmantelamiento, restauración y rehabilitación total acumulado al final del período | W10: Mayor valor por revaluación acumulado al final del período | X10: Saldo al comienzo del período | Y10: Incrementos por transferencias, adquisiciones y otros cambios | Z10: Disminuciones por transferencias y otros cambios | AA10: Subtotal al final del período | AB10: Depreciación y/o amortización acumulada al final del período | AC10: Total Neto al final del período | AD10: Gasto fiscal por Depreciación y/o amortización del período | AE10: Valor total al final del periodo | AF10: Depreciación y/o Amortización acumulada al final del período | AG10: Valor Neto al final del período | AH10: Gasto fiscal Depreciación y/o Amortización del período
D11: Costo | E11: Efecto de conversión (Por moneda funcional diferente al peso colombiano) | F11: Ajuste por revaluaciones o reexpresiones | G11: Transferencias y/o adquisiciones | H11: Cambios en Valor Razonable | I11: Transferencias y/o eliminaciones | J11: Cambios en Valor Razonable | K11: Por Costo | L11: Efecto de conversión (Por moneda funcional diferente al peso colombiano) | M11: Por Ajuste por revaluaciones o reexpresiones | O11: Costo | P11: Ajuste por revaluaciones o reexpresiones | Q11: Por Costo | R11: Por Ajuste por revaluaciones o reexpresiones
A12: 12 | B12: Propiedades, planta y equipo | AK12: COSTO | AL12: Ajuste por revaluaciones o reexpresiones | AM12: Subtotal al final del período | AN12: Total Neto al final del período | AO12: Valor Neto al final del período | AP12: Importe al comienzo del periodo (No incluye Depreciación, amortización o deterioro)
A13: =A12+1 -> 13 | C13: Terrenos | M13: 0 | N13: 0 | O13: =D13+G13-I13-K13-N13 -> 0 | P13: =F13+H13-J13-M13 -> 0 | AA13: =X13+Y13-Z13 -> 0 | AC13: =AA13-AB13 -> 0 | AG13: =AE13-AF13 -> 0 | AK13: =IF(O13<0,"ERROR","OK") -> OK | AL13: =IF(O13+P13<0,"ERROR","OK") -> OK | AM13: =IF(AA13<0,"ERROR","OK") -> OK | AN13: =IF(AC13<0,"ERROR","OK") -> OK | AO13: =IF(AG13<0,"ERROR","OK") -> OK | AR13: =IF(OR(AK13="ERROR",AL13="ERROR",AM13="ERROR",AN13="ERROR",AO13="ERROR",AP13="ERROR",AQ13="ERROR"),(CONCATENATE("Error en el concepto ",C13," de la hoja 6 Fila ",A13)),"") -> 
A14: 14 | C14: Edificios | M14: 0 | N14: 0 | O14: =D14+G14-I14-K14-N14 -> 0 | P14: 0 | AA14: 0 | AC14: 0 | AG14: 0 | AK14: =IF(O14<0,"ERROR","OK") -> OK | AL14: =IF(O14+P14<0,"ERROR","OK") -> OK | AM14: =IF(AA14<0,"ERROR","OK") -> OK | AN14: =IF(AC14<0,"ERROR","OK") -> OK | AO14: =IF(AG14<0,"ERROR","OK") -> OK | AR14: =IF(OR(AK14="ERROR",AL14="ERROR",AM14="ERROR",AN14="ERROR",AO14="ERROR",AP14="ERROR",AQ14="ERROR"),(CONCATENATE("Error en el concepto ",C14," de la hoja 6 Fila ",A14)),"") -> 
A15: 15 | C15: Maquinaria | M15: 0 | N15: 0 | O15: 0 | P15: 0 | AA15: 0 | AC15: 0 | AG15: 0 | AK15: OK | AL15: OK | AM15: OK | AN15: OK | AO15: OK
A16: 16 | C16: Buques | M16: 0 | N16: 0 | O16: 0 | P16: 0 | AA16: 0 | AC16: 0 | AG16: 0 | AK16: OK | AL16: OK | AM16: OK | AN16: OK | AO16: OK
A17: 17 | C17: Aeronave | M17: 0 | N17: 0 | O17: 0 | P17: 0 | AA17: 0 | AC17: 0 | AG17: 0 | AK17: OK | AL17: OK | AM17: OK | AN17: OK | AO17: OK
A18: 18 | C18: Equipos de Transporte | M18: 0 | N18: 0 | O18: 0 | P18: 0 | AA18: 0 | AC18: 0 | AG18: 0 | AK18: =IF(O18<0,"ERROR","OK") -> OK | AL18: OK | AM18: OK | AN18: OK | AO18: OK
A19: 19 | C19: Enseres y accesorios | M19: 0 | N19: 0 | O19: 0 | P19: 0 | AA19: 0 | AC19: 0 | AG19: 0 | AK19: OK | AL19: OK | AM19: OK | AN19: OK | AO19: OK
A20: 20 | C20: Equipos informáticos | M20: 0 | N20: 0 | O20: 0 | P20: 0 | AA20: 0 | AC20: 0 | AG20: 0 | AK20: =IF(O20<0,"ERROR","OK") -> OK | AL20: OK | AM20: OK | AN20: OK | AO20: OK
A21: 21 | C21: Equipos de redes y comunicación | M21: 0 | N21: 0 | O21: 0 | P21: 0 | AA21: 0 | AC21: 0 | AG21: 0 | AK21: OK | AL21: OK | AM21: OK | AN21: OK | AO21: OK
A22: 22 | C22: Infraestructura de red | M22: 0 | N22: 0 | O22: 0 | P22: 0 | AA22: 0 | AC22: 0 | AG22: 0 | AK22: OK | AL22: OK | AM22: OK | AN22: OK | AO22: OK
A23: 23 | C23: Activos tangibles de exploración y evaluación | M23: 0 | N23: 0 | O23: 0 | P23: 0 | AA23: 0 | AC23: 0 | AG23: 0 | AK23: OK | AL23: OK | AM23: OK | AN23: OK | AO23: OK
A24: 24 | C24: Activos de minería | M24: 0 | N24: 0 | O24: 0 | P24: 0 | AA24: 0 | AC24: 0 | AG24: 0 | AK24: OK | AL24: OK | AM24: OK | AN24: OK | AO24: OK
A25: 25 | C25: Activos de petróleo y gas | M25: 0 | N25: 0 | O25: 0 | P25: 0 | AA25: 0 | AC25: 0 | AG25: 0 | AK25: OK | AL25: OK | AM25: OK | AN25: OK | AO25: OK
A26: 26 | C26: PP&E en arrendamiento operativo | M26: 0 | N26: 0 | O26: 0 | P26: 0 | AA26: 0 | AC26: 0 | AG26: 0 | AK26: OK | AL26: OK | AM26: OK | AN26: OK | AO26: OK
A27: 27 | C27: Plantas productoras | M27: 0 | N27: 0 | O27: 0 | P27: 0 | AA27: 0 | AC27: 0 | AG27: 0 | AK27: OK | AL27: OK | AM27: OK | AN27: OK | AO27: OK
A28: 28 | C28: Animales productores | M28: 0 | N28: 0 | O28: 0 | P28: 0 | AA28: 0 | AC28: 0 | AG28: 0 | AK28: OK | AL28: OK | AM28: OK | AN28: OK | AO28: OK
A29: 29 | C29: Construcciones en proceso | M29: 0 | N29: 0 | O29: 0 | P29: 0 | AA29: 0 | AC29: 0 | AG29: 0 | AK29: OK | AL29: OK | AM29: OK | AN29: OK | AO29: OK
A30: 30 | C30: Otras propiedades, plantas y equipo | M30: 0 | N30: 0 | O30: 0 | P30: 0 | AA30: 0 | AC30: 0 | AG30: 0 | AK30: OK | AL30: OK | AM30: OK | AN30: OK | AO30: OK
A31: 31 | C31: Total propiedades, planta y equipo | D31: =SUM(D13:D30) -> 0 | E31: 0 | F31: 0 | G31: 0 | H31: 0 | I31: 0 | J31: 0 | K31: 0 | L31: 0 | M31: 0 | N31: 0 | O31: 0 | P31: 0 | Q31: 0 | R31: 0 | S31: 0 | T31: 0 | U31: 0 | V31: 0 | W31: 0 | X31: 0 | Y31: 0 | Z31: 0 | AA31: 0 | AB31: 0 | AC31: 0 | AD31: 0 | AE31: 0 | AF31: 0 | AG31: 0 | AH31: 0 | AK31: OK | AL31: OK | AM31: OK | AN31: OK | AO31: OK
A32: 32 | B32: Propiedades de inversión | AK32: OK | AL32: OK | AM32: OK | AN32: OK | AO32: OK
A33: 33 | C33: Terrenos | O33: =D33+E33+G33-I33-K33-L33-N33 -> 0 | P33: =F33+H33-J33-M33 -> 0 | AA33: =X33+Y33-Z33 -> 0 | AC33: =AA33-AB33 -> 0 | AG33: =AE33-AF33 -> 0 | AK33: OK | AL33: OK | AM33: OK | AN33: OK | AO33: OK
A34: 34 | C34: Edificios | O34: 0 | P34: =F34+H34-J34-M34 -> 0 | AA34: =X34+Y34-Z34 -> 0 | AC34: =AA34-AB34 -> 0 | AG34: =AE34-AF34 -> 0 | AK34: OK | AL34: OK | AM34: OK | AN34: OK | AO34: OK
A35: 35 | C35: Total propiedades de inversión | D35: =SUM(D33:D34) -> 0 | E35: 0 | F35: 0 | G35: 0 | H35: 0 | I35: 0 | J35: 0 | K35: 0 | L35: 0 | M35: 0 | N35: 0 | O35: 0 | P35: 0 | Q35: 0 | R35: 0 | S35: 0 | T35: 0 | U35: 0 | V35: 0 | W35: 0 | X35: 0 | Y35: 0 | Z35: 0 | AA35: 0 | AB35: 0 | AC35: 0 | AD35: 0 | AE35: 0 | AF35: 0 | AG35: 0 | AH35: 0 | AK35: OK | AL35: OK | AM35: OK | AN35: OK | AO35: OK
A36: 36 | B36: ANCMV | O36: =D36+E36+G36-I36-K36-L36-N36 -> 0 | P36: =F36+H36-J36-M36 -> 0 | AA36: =X36+Y36-Z36 -> 0 | AC36: =AA36-AB36 -> 0 | AG36: =AE36-AF36 -> 0 | AK36: OK | AL36: OK | AM36: OK | AN36: OK | AO36: OK
A37: 37 | B37: Total PPE, PI y ANCMV | D37: =D31+D35+D36 -> 0 | E37: 0 | F37: 0 | G37: 0 | H37: 0 | I37: 0 | J37: 0 | K37: 0 | L37: 0 | M37: 0 | N37: 0 | O37: 0 | P37: 0 | Q37: 0 | R37: 0 | S37: 0 | T37: 0 | U37: 0 | V37: 0 | W37: 0 | X37: 0 | Y37: 0 | Z37: 0 | AA37: 0 | AB37: 0 | AC37: 0 | AD37: 0 | AE37: 0 | AF37: 0 | AG37: 0 | AH37: 0 | AK37: OK | AL37: OK | AM37: OK | AN37: OK | AO37: OK
A38: 38 | B38: Activos Intangibles | AK38: OK | AL38: OK | AM38: OK | AN38: OK | AO38: OK
A39: 39 | C39: Marcas Comerciales | O39: =D39+G39-I39-K39-N39 -> 0 | P39: =F39+H39-J39-M39 -> 0 | AA39: =X39+Y39-Z39 -> 0 | AC39: =AA39-AB39 -> 0 | AG39: =AE39-AF39 -> 0 | AK39: OK | AL39: OK | AM39: OK | AN39: OK | AO39: OK
A40: 40 | C40: Activos intangibles de exploración y evaluación | O40: =D40+G40-I40-K40-N40 -> 0 | P40: 0 | AA40: 0 | AC40: 0 | AG40: 0 | AK40: OK | AL40: OK | AM40: OK | AN40: OK | AO40: OK
A41: 41 | C41: Cabeceras de periódicos, revistas, títulos de publicaciones | O41: 0 | P41: 0 | AA41: 0 | AC41: 0 | AG41: 0 | AK41: OK | AL41: OK | AM41: OK | AN41: OK | AO41: OK
A42: 42 | C42: Programas y aplicaciones informáticos | O42: 0 | P42: 0 | AA42: 0 | AC42: 0 | AG42: 0 | AK42: OK | AL42: OK | AM42: OK | AN42: OK | AO42: OK
A43: 43 | C43: Licencias y Franquicias | O43: 0 | P43: 0 | AA43: 0 | AC43: 0 | AG43: 0 | AK43: OK | AL43: OK | AM43: OK | AN43: OK | AO43: OK
A44: 44 | C44: Propiedad intelectual, patentes y otra propiedad industrial, servicios y derechos de operación | O44: 0 | P44: 0 | AA44: 0 | AC44: 0 | AG44: 0 | AK44: OK | AL44: OK | AM44: OK | AN44: OK | AO44: OK
A45: 45 | C45: Recetas, fórmulas, modelos, diseños y prototipos | O45: 0 | P45: 0 | AA45: 0 | AC45: 0 | AG45: 0 | AK45: OK | AL45: OK | AM45: OK | AN45: OK | AO45: OK
A46: 46 | C46: Concesiones | O46: 0 | P46: 0 | AA46: 0 | AC46: 0 | AG46: 0 | AK46: OK | AL46: OK | AM46: OK | AN46: OK | AO46: OK
A47: 47 | C47: Desembolsos de desarrollo capitalizados | O47: 0 | P47: 0 | AA47: 0 | AC47: 0 | AG47: 0 | AK47: OK | AL47: OK | AM47: OK | AN47: OK | AO47: OK
A48: 48 | C48: Activos intangibles en desarrollo | O48: 0 | P48: 0 | AA48: 0 | AC48: 0 | AG48: 0 | AK48: OK | AL48: OK | AM48: OK | AN48: OK | AO48: OK
A49: 49 | C49: Plusvalía | O49: 0 | P49: 0 | AA49: 0 | AC49: 0 | AG49: 0 | AK49: OK | AL49: OK | AM49: OK | AN49: OK | AO49: OK
A50: 50 | C50: Mejoras de derechos de arrendamiento | O50: 0 | P50: =F50+H50-J50-M50 -> 0 | AA50: 0 | AC50: 0 | AG50: 0 | AK50: OK | AL50: OK | AM50: OK | AN50: OK | AO50: OK
A51: 51 | C51: Subvenciones del Estado | O51: 0 | P51: 0 | AA51: 0 | AC51: 0 | AG51: 0 | AK51: OK | AL51: OK | AM51: OK | AN51: OK | AO51: OK
A52: 52 | C52: Otros activos intangibles | O52: 0 | P52: 0 | AA52: 0 | AC52: 0 | AG52: 0 | AK52: OK | AL52: OK | AM52: OK | AN52: OK | AO52: OK
A53: 53 | C53: Total activos intangibles | D53: =SUM(D39:D52) -> 0 | E53: =SUM(E39:E52) -> 0 | F53: =SUM(F39:F52) -> 0 | G53: 0 | H53: 0 | I53: 0 | J53: 0 | K53: 0 | L53: =SUM(L39:L52) -> 0 | M53: 0 | N53: 0 | O53: 0 | P53: 0 | Q53: 0 | R53: 0 | S53: 0 | T53: 0 | U53: 0 | V53: 0 | W53: 0 | X53: 0 | Y53: 0 | Z53: 0 | AA53: 0 | AB53: 0 | AC53: 0 | AD53: 0 | AE53: 0 | AF53: 0 | AG53: 0 | AH53: 0 | AK53: OK | AL53: OK | AM53: OK | AN53: OK | AO53: OK
A54: 54 | B54: TOTAL PPE, PI, ANCMV y INTANGIBLES | D54: =D37+D53 -> 0 | E54: =E37+E53 -> 0 | F54: 0 | G54: 0 | H54: 0 | I54: 0 | J54: 0 | K54: 0 | L54: =L37+L53 -> 0 | M54: 0 | N54: 0 | O54: 0 | P54: 0 | Q54: 0 | R54: 0 | S54: 0 | T54: 0 | U54: 0 | V54: 0 | W54: 0 | X54: 0 | Y54: 0 | Z54: 0 | AA54: 0 | AB54: 0 | AC54: 0 | AD54: 0 | AE54: 0 | AF54: 0 | AG54: 0 | AH54: 0 | AK54: OK | AL54: OK | AM54: OK | AN54: OK | AO54: OK
AK55: =IF('H2 (ESF - Patrimonio)'!L138='H6 (Activos fijos)'!N54,"OK","ERROR") -> OK
AK56: =IF('H3 (ERI - Renta Liquida)'!M270='H6 (Activos fijos)'!Q54+'H6 (Activos fijos)'!R54,"OK","ERROR") -> OK
AK57: =IF('H3 (ERI - Renta Liquida)'!M280='H6 (Activos fijos)'!S54,"OK","ERROR") -> OK
AK58: =IF('H3 (ERI - Renta Liquida)'!M278='H6 (Activos fijos)'!AD54,"OK","ERROR") -> OK

Sheet H7 (Resumen ESF-ERI) (hidden)
F1: RESUMEN ESF - PATRIMONIO y ERI - RENTA LIQUIDA
G7: val1 | H7: val2 | I7: val3
A8: NUM | B8: CONCEPTO | G8: VALOR CONTABLE | H8: VALOR FISCAL | I8: VARIACIÓN
A9: 9 | B9: ESTADO DE SITUACION FINANCIERA - PATRIMONIO
A10: =A9+1 -> 10 | C10: Activos
A11: =A10+1 -> 11 | D11: Efectivo y equivalentes al efectivo | G11: =+'H2 (ESF - Patrimonio)'!G11 -> 0 | H11: =+'H2 (ESF - Patrimonio)'!K11 -> 0 | I11: =G11-H11 -> 0
A12: 12 | D12: Inversiones e instrumentos financieros derivados | G12: =+'H2 (ESF - Patrimonio)'!G15 -> 0 | H12: =+'H2 (ESF - Patrimonio)'!K15 -> 0 | I12: =G12-H12 -> 0
A13: 13 | D13: Cuentas por cobrar | G13: =+'H2 (ESF - Patrimonio)'!G38 -> 0 | H13: =+'H2 (ESF - Patrimonio)'!K38 -> 0 | I13: 0
A14: 14 | D14: Inventarios | G14: =+'H2 (ESF - Patrimonio)'!G61 -> 0 | H14: =+'H2 (ESF - Patrimonio)'!K61 -> 0 | I14: 0
A15: 15 | D15: Gastos pagados por anticipado | G15: =+'H2 (ESF - Patrimonio)'!G73 -> 0 | H15: =+'H2 (ESF - Patrimonio)'!K73 -> 0 | I15: 0
A16: 16 | D16: Activos por impuestos corrientes | G16: =+'H2 (ESF - Patrimonio)'!G78 -> 0 | H16: =+'H2 (ESF - Patrimonio)'!K78 -> 0 | I16: 0
A17: 17 | D17: Activos por impuestos diferidos | G17: =+'H2 (ESF - Patrimonio)'!G83 -> 0 | H17: =+'H2 (ESF - Patrimonio)'!K83 -> 0 | I17: 0
A18: 18 | D18: Propiedades, planta y equipo | G18: =+'H2 (ESF - Patrimonio)'!G84 -> 0 | H18: =+'H2 (ESF - Patrimonio)'!K84 -> 0 | I18: 0
A19: 19 | D19: Activos intangibles | G19: =+'H2 (ESF - Patrimonio)'!G94 -> 0 | H19: =+'H2 (ESF - Patrimonio)'!K94 -> 0 | I19: 0
A20: 20 | D20: Propiedades de inversión | G20: =+'H2 (ESF - Patrimonio)'!G113 -> 0 | H20: =+'H2 (ESF - Patrimonio)'!K113 -> 0 | I20: 0
A21: 21 | D21: Activos no corrientes mantenidos para la venta / distribuir a los propietarios | G21: =+'H2 (ESF - Patrimonio)'!G118 -> 0 | H21: =+'H2 (ESF - Patrimonio)'!K118 -> 0 | I21: 0
A22: 22 | D22: Activos biológicos | G22: =+'H2 (ESF - Patrimonio)'!G123 -> 0 | H22: =+'H2 (ESF - Patrimonio)'!K123 -> 0 | I22: 0
A23: 23 | D23: Otros activos | G23: =+'H2 (ESF - Patrimonio)'!G140 -> 0 | H23: =+'H2 (ESF - Patrimonio)'!K140 -> 0 | I23: 0
A24: 24 | D24: Total activos | G24: =SUM(G11:G23) -> 0 | H24: =SUM(H11:H23) -> 0 | I24: =G24-H24 -> 0
A25: 25 | C25: Pasivos
A26: 26 | D26: Obligaciones financieras y cuentas por pagar | G26: =+'H2 (ESF - Patrimonio)'!G146 -> 0 | H26: =+'H2 (ESF - Patrimonio)'!K146 -> 0 | I26: =+G26-H26 -> 0
A27: 27 | D27: Arrendamientos por pagar | G27: =+'H2 (ESF - Patrimonio)'!G159 -> 0 | H27: =+'H2 (ESF - Patrimonio)'!K159 -> 0 | I27: =+G27-H27 -> 0
A28: 28 | D28: Otros pasivos financieros | G28: =+'H2 (ESF - Patrimonio)'!G163 -> 0 | H28: =+'H2 (ESF - Patrimonio)'!K163 -> 0 | I28: 0
A29: 29 | D29: Impuestos, gravámenes y tasas por pagar | G29: =+'H2 (ESF - Patrimonio)'!G169 -> 0 | H29: =+'H2 (ESF - Patrimonio)'!K169 -> 0 | I29: 0
A30: 30 | D30: Pasivos por impuestos diferidos | G30: =+'H2 (ESF - Patrimonio)'!G173 -> 0 | H30: =+'H2 (ESF - Patrimonio)'!K173 -> 0 | I30: 0
A31: 31 | D31: Pasivos por beneficios a los empleados | G31: =+'H2 (ESF - Patrimonio)'!G174 -> 0 | H31: =+'H2 (ESF - Patrimonio)'!K174 -> 0 | I31: 0
A32: 32 | D32: Provisiones | G32: =+'H2 (ESF - Patrimonio)'!G179 -> 0 | H32: =+'H2 (ESF - Patrimonio)'!K179 -> 0 | I32: 0
A33: 33 | D33: Pasivos por ingresos diferidos | G33: =+'H2 (ESF - Patrimonio)'!G191 -> 0 | H33: =+'H2 (ESF - Patrimonio)'!K191 -> 0 | I33: 0
A34: 34 | D34: Otros pasivos | G34: =+'H2 (ESF - Patrimonio)'!G196 -> 0 | H34: =+'H2 (ESF - Patrimonio)'!K196 -> 0 | I34: 0
A35: 35 | D35: Total pasivos | G35: =SUM(G26:G34) -> 0 | H35: =SUM(H26:H34) -> 0 | I35: 0
A36: 36 | C36: Patrimonio
A37: 37 | D37: Capital social y reservas | G37: =+'H2 (ESF - Patrimonio)'!G208 -> 0
A38: 38 | D38: Resultados del ejercicio | G38: =+'H2 (ESF - Patrimonio)'!G225 -> 0
A39: 39 | D39: Resultados acumulados | G39: =+'H2 (ESF - Patrimonio)'!G230 -> 0
A40: 40 | D40: Ganancias (pérdidas) acumuladas o retenidas por la adopción por primera | G40: =+'H2 (ESF - Patrimonio)'!G238 -> 0
A41: 41 | D41: Otro resultado integral acumulado | G41: =+'H2 (ESF - Patrimonio)'!G241 -> 0
A42: 42 | D42: Total patrimonio | G42: =SUM(G37:G41) -> 0
A43: 43 | B43: ESTADO DE RESULTADO INTEGRAL - IMPUESTO DE RENTA
A44: 44 | C44: Ingresos
A45: 45 | D45: Ingresos brutos Actividad Industrial, comercial y servicios | G45: =+'H3 (ERI - Renta Liquida)'!H12 -> 0 | H45: =+'H3 (ERI - Renta Liquida)'!L12 -> 0 | I45: =G45-H45 -> 0
A46: 46 | D46: Devoluciones, rebajas y descuentos | G46: =+'H3 (ERI - Renta Liquida)'!H35 -> 0 | H46: =+'H3 (ERI - Renta Liquida)'!L35 -> 0 | I46: =+G46-H46 -> 0
A47: 47 | D47: Ingresos financieros | G47: =+'H3 (ERI - Renta Liquida)'!H39 -> 0 | H47: =+'H3 (ERI - Renta Liquida)'!L39 -> 0 | I47: 0
A48: 48 | D48: Ganancias por inversiones en subsidiarias, asociadas y/o negocios conjuntos | G48: =+'H3 (ERI - Renta Liquida)'!H47 -> 0 | H48: =+'H3 (ERI - Renta Liquida)'!L47 -> 0 | I48: 0
A49: 49 | D49: Ingresos por mediciones a valor razonable | G49: =+'H3 (ERI - Renta Liquida)'!H58 -> 0 | H49: =+'H3 (ERI - Renta Liquida)'!L58 -> 0 | I49: 0
A50: 50 | D50: Utilidad en la venta o enajenación de activos, bienes poseídos por menos de dos años | G50: =+'H3 (ERI - Renta Liquida)'!H64 -> 0 | H50: =+'H3 (ERI - Renta Liquida)'!L64 -> 0 | I50: 0
A51: 51 | D51: Utilidad por venta o enajenación de activos, bienes poseídos por dos años o más (ganancia ocasional) | G51: =+'H3 (ERI - Renta Liquida)'!H73 -> 0 | H51: =+'H3 (ERI - Renta Liquida)'!L73 -> 0 | I51: 0
A52: 52 | D52: Ingresos por reversión de deterioro del valor | G52: =+'H3 (ERI - Renta Liquida)'!H82 -> 0 | H52: =+'H3 (ERI - Renta Liquida)'!L82 -> 0 | I52: 0
A53: 53 | D53: Ingresos por reversión de provisiones (pasivos de monto o fecha inciertos) | G53: =+'H3 (ERI - Renta Liquida)'!H95 -> 0 | H53: =+'H3 (ERI - Renta Liquida)'!L95 -> 0 | I53: 0
A54: 54 | D54: Ingresos por reversión de pasivos por beneficios a los empleados | G54: =+'H3 (ERI - Renta Liquida)'!H103 -> 0 | H54: =+'H3 (ERI - Renta Liquida)'!L103 -> 0 | I54: 0
A55: 55 | D55: Otros ingresos | G55: =+'H3 (ERI - Renta Liquida)'!H108 -> 0 | H55: =+'H3 (ERI - Renta Liquida)'!L108 -> 0 | I55: 0
A56: 56 | D56: Ganancias netas en operaciones discontinuadas | G56: =+'H3 (ERI - Renta Liquida)'!H115 -> 0 | H56: =+'H3 (ERI - Renta Liquida)'!L115 -> 0 | I56: 0
A57: 57 | D57: Ajustes fiscales | G57: =+'H3 (ERI - Renta Liquida)'!H116 -> 0 | H57: =+'H3 (ERI - Renta Liquida)'!L116 -> 0 | I57: 0
A58: 58 | D58: Ingresos no constitutivos de renta ni ganancia ocasional | G58: =+'H3 (ERI - Renta Liquida)'!H122 -> 0 | H58: =+'H3 (ERI - Renta Liquida)'!L122 -> 0 | I58: 0
A59: 59 | D59: Total ingresos | G59: =G45-G46+G47+G48+G49+G50+G51+G52+G53+G54+G55+G56+G57-G58 -> 0 | H59: =H45-H46+H47+H48+H49+H50+H52+H53+H54+H55+H56+H57-H58 -> 0 | I59: 0
A60: 60 | C60: Costos
A61: 61 | D61: Materias primas, reventa de bienes terminados, y servicios | G61: =+'H3 (ERI - Renta Liquida)'!H125 -> 0 | H61: =+'H3 (ERI - Renta Liquida)'!L125 -> 0 | I61: =+G61-H61 -> 0
A62: 62 | D62: Mano de obra | G62: =+'H3 (ERI - Renta Liquida)'!H142 -> 0 | H62: =+'H3 (ERI - Renta Liquida)'!L142 -> 0 | I62: =+G62-H62 -> 0
A63: 63 | D63: Depreciaciones, amortizaciones y deterioros | G63: =+'H3 (ERI - Renta Liquida)'!H147 -> 0 | H63: =+'H3 (ERI - Renta Liquida)'!L147 -> 0 | I63: =+G63-H63 -> 0
A64: 64 | D64: Otros costos | G64: =+'H3 (ERI - Renta Liquida)'!H172 -> 0 | H64: =+'H3 (ERI - Renta Liquida)'!L172 -> 0 | I64: 0
A65: 65 | D65: Menor costo - ajuste Precios de Transferencia | G65: ='H3 (ERI - Renta Liquida)'!H185 -> 0 | H65: =+'H3 (ERI - Renta Liquida)'!L185 -> 0 | I65: 0
A66: 66 | D66: Total costos | G66: =G61+G62+G63+G64-G65 -> 0 | H66: =H61+H62+H63+H64-H65 -> 0 | I66: 0
A67: 67 | C67: Gastos
A68: 68 | D68: De Administración
A69: 69 | E69: Mano de obra | G69: =+'H3 (ERI - Renta Liquida)'!H189 -> 0 | H69: =+'H3 (ERI - Renta Liquida)'!L189 -> 0 | I69: 0
A70: 70 | E70: Otros gastos de administración | G70: =+'H3 (ERI - Renta Liquida)'!H194 -> 0 | H70: =+'H3 (ERI - Renta Liquida)'!L194 -> 0 | I70: 0
A71: 71 | E71: Depreciaciones, amortizaciones y deterioros | G71: =+'H3 (ERI - Renta Liquida)'!H215 -> 0 | H71: =+'H3 (ERI - Renta Liquida)'!L215 -> 0 | I71: 0
A72: 72 | E72: Total gastos de administración | G72: =SUM(G69:G71) -> 0 | H72: =SUM(H69:H71) -> 0 | I72: 0
A73: 73 | D73: De Distribución y ventas
A74: 74 | E74: Mano de obra | G74: =+'H3 (ERI - Renta Liquida)'!H241 -> 0 | H74: =+'H3 (ERI - Renta Liquida)'!L241 -> 0 | I74: 0
A75: =A74+1 -> 75 | E75: Otros gastos de distribución y ventas | G75: =+'H3 (ERI - Renta Liquida)'!H246 -> 0 | H75: =+'H3 (ERI - Renta Liquida)'!L246 -> 0 | I75: 0
A76: 76 | E76: Depreciaciones, amortizaciones y deterioros | G76: =+'H3 (ERI - Renta Liquida)'!H270 -> 0 | H76: =+'H3 (ERI - Renta Liquida)'!L270 -> 0 | I76: 0
A77: 77 | E77: Total gastos de distribución y ventas | G77: =SUM(G74:G76) -> 0 | H77: =SUM(H74:H76) -> 0 | I77: 0
A78: 78 | D78: Gastos Financieros | G78: =+'H3 (ERI - Renta Liquida)'!H295 -> 0 | H78: =+'H3 (ERI - Renta Liquida)'!L295 -> 0 | I78: 0
A79: 79 | D79: Pérdidas por inversiones en subsidiarias, asociadas y/o negocios conjuntos | G79: =+'H3 (ERI - Renta Liquida)'!H307 -> 0 | H79: =+'H3 (ERI - Renta Liquida)'!L307 -> 0 | I79: 0
A80: 80 | D80: Pérdidas por mediciones a valor razonable | G80: =+'H3 (ERI - Renta Liquida)'!H310 -> 0 | H80: =+'H3 (ERI - Renta Liquida)'!L310 -> 0 | I80: 0
A81: 81 | D81: Pérdida en la venta o enajenación de activos fijos | G81: =+'H3 (ERI - Renta Liquida)'!H316 -> 0 | H81: =+'H3 (ERI - Renta Liquida)'!L316 -> 0 | I81: 0
A82: 82 | D82: Gastos por provisiones (pasivos de monto o fecha inciertos) | G82: =+'H3 (ERI - Renta Liquida)'!H326 -> 0 | H82: =+'H3 (ERI - Renta Liquida)'!L326 -> 0 | I82: 0
A83: 83 | D83: Otros gastos | G83: =+'H3 (ERI - Renta Liquida)'!H334 -> 0 | H83: =+'H3 (ERI - Renta Liquida)'!L334 -> 0 | I83: 0
A84: 84 | D84: Pérdidas netas en operaciones discontinuadas | G84: =+'H3 (ERI - Renta Liquida)'!H340 -> 0 | H84: =+'H3 (ERI - Renta Liquida)'!L340 -> 0 | I84: 0
A85: 85 | D85: Menor gasto o deducción - Ajuste Precios de Transferencia | G85: =+'H3 (ERI - Renta Liquida)'!H341 -> 0 | H85: =+'H3 (ERI - Renta Liquida)'!L341 -> 0 | I85: 0
A86: 86 | D86: Total gastos | G86: =G72+G77+G78+G79+G80+G81+G82+G83+G84-G85 -> 0 | H86: =H72+H77+H78+H79+H80+H81+H82+H83+H84-H85 -> 0 | I86: 0
A87: 87 | C87: RESULTADO DEL EJERCICIO | G87: =G59-G66-G86 -> 0 | H87: =H59-H66-H86+'H3 (ERI - Renta Liquida)'!L113+'H3 (ERI - Renta Liquida)'!L118 -> 0 | I87: =G87-H87 -> 0

Sheet Formulario 110 (hidden)
G1: Declaración de Renta y Complementario o de Ingresos y Patrimonio para Personas Jurídicas y Asimiladas y Personas Naturales y Asimiladas no Residentes y Sucesiones Ilíquidas de Causantes no Residentes | X1: Privada | AD1: 110
B6: 1. Año | D6: 2019 | P6: 4. Número de formulario | AI6: 1
AI7: 2
A8: Espacio reservado para la DIAN | AI8: 3
P9: Simulación a partir del Reporte de Conciliación Fiscal, Formato 2516
A10: POR UNA COLOMBIA MÁS HONESTA
AI11: 2000
AI12: 2001
AI13: 2002
AI14: 2003
A15: Datos Generales | B15: 5. No. de Identificación Tributaria | H15: 6. DV | I15: 7. Primer apellido | P15: 8. Segundo apellido | W15: 9. Primer nombre | AC15: 10. Otros nombres | AI15: 2004
AI16: 2005
B17: 11. Razón social | AF17: 12. Cód. Dir. Seccional | AI17: 2006
AI18: 2007
B19: 24. Actividad económica | I19: Si es una corrección indique | P19: 25. Cód | T19: 26. No. Formulario anterior | AI19: 2008
A20: 27. Fracción año gravable siguiente (Marque X) | J20: 28. Renuncio a pertenecer al Régimen tributario especial | W20: 29. Vinculado al pago de obras por impuestos
A21: Datos Informativos | C21: 30. Total costos y gastos nómina | H21: =ROUND('H3 (ERI - Renta Liquida)'!L580,-3) -> 0 | N21: 31. Aportes al sistema de seguridad social | T21: =ROUND('H3 (ERI - Renta Liquida)'!L581,-3) -> 0 | Z21: 32. Aportes al SENA, ICBF, cajas de compensación | AC21: =ROUND('H3 (ERI - Renta Liquida)'!L582,-3) -> 0
A22: Patrimonio | B22: Efectivo y equivalentes al efectivo | K22: 33 | L22: =ROUND('H2 (ESF - Patrimonio)'!$K$11,-3) -> 0 | R22: Continuación Renta | S22: Compensaciones | AB22: =K57+1 -> 69 | AC22: =ROUND('H3 (ERI - Renta Liquida)'!L480,-3) -> 0 | AI22: 02
B23: Inversiones e instrumentos financieros derivados | K23: =+K22+1 -> 34 | L23: =ROUND('H2 (ESF - Patrimonio)'!$K$15,-3) -> 0 | S23: Renta líquida (67 - 69) | AB23: =AB22+1 -> 70 | AC23: =IF(AC22>L56,L56,IF(L56=0,0,IF(L56-AC22<0,0,L56-AC22))) -> 0 | AI23: 03
B24: Cuentas, documentos y arrendamientos financieros por cobrar | K24: 35 | L24: =ROUND('H2 (ESF - Patrimonio)'!$K$38,-3) -> 0 | S24: Renta presuntiva | AB24: 71 | AC24: =ROUND('H3 (ERI - Renta Liquida)'!L484,-3) -> 0 | AI24: 04
B25: Inventarios | K25: 36 | L25: =ROUND('H2 (ESF - Patrimonio)'!$K$61,-3) -> 0 | S25: Renta exenta | AB25: 72 | AC25: =ROUND('H3 (ERI - Renta Liquida)'!L496,-3) -> 0 | AI25: 05
B26: Activos intangibles | K26: 37 | L26: =ROUND('H2 (ESF - Patrimonio)'!$K$94,-3) -> 0 | S26: Rentas gravables | AB26: 73 | AC26: =ROUND('H3 (ERI - Renta Liquida)'!L497,-3) -> 0 | AI26: 06
B27: Activos biológicos | K27: 38 | L27: =ROUND('H2 (ESF - Patrimonio)'!$K$123,-3) -> 0 | S27: Renta líquida gravable (al mayor valor entre 70 y 71 reste 72 y sume 73) | AB27: 74 | AC27: =IF(MAX(AC23,AC24)-AC25+AC26<0,0,MAX(AC23,AC24)-AC25+AC26) -> 0 | AI27: 07
B28: Propiedades, planta y equipo, propiedades de inversión y ANCMV | K28: 39 | L28: =ROUND('H2 (ESF - Patrimonio)'!$K$84+'H2 (ESF - Patrimonio)'!$K$113+'H2 (ESF - Patrimonio)'!$K$118,-3) -> 0 | R28: Ganancias ocasionales | S28: Ingresos por ganancias ocasionales | AB28: 75 | AC28: =ROUND('H3 (ERI - Renta Liquida)'!L510,-3) -> 0 | AI28: 08
B29: Otros activos | K29: 40 | L29: =ROUND('H2 (ESF - Patrimonio)'!$K$73+'H2 (ESF - Patrimonio)'!$K$78+'H2 (ESF - Patrimonio)'!$K$83+'H2 (ESF - Patrimonio)'!$K$140,-3) -> 0 | S29: Costos por ganancias ocasionales | AB29: 76 | AC29: =ROUND('H3 (ERI - Renta Liquida)'!L513,-3) -> 0 | AI29: 09
B30: Total patrimonio bruto (33 + 34 + 35 + 36 + 37 + 38 + 39 + 40) | K30: 41 | L30: =L22+L23+L24+L25+L26+L27+L28+L29 -> 0 | S30: Ganancias ocasionales no gravadas y exentas | AB30: 77 | AC30: =ROUND('H3 (ERI - Renta Liquida)'!L514+'H3 (ERI - Renta Liquida)'!L515,-3) -> 0 | AI30: 10
B31: Pasivos | K31: 42 | L31: =ROUND('H2 (ESF - Patrimonio)'!$K$205,-3) -> 0 | S31: Ganancias ocasionales gravables (75 - 76 - 77) | AB31: 78 | AC31: =IF(AC28-AC29-AC30<0,0,AC28-AC29-AC30) -> 0 | AI31: 11
B32: Total patrimonio líquido (41 - 42) | K32: 43 | L32: =IF(L30-L31<0,0,L30-L31) -> 0 | R32: Liquidación privada | S32: Impuesto sobre las rentas líquidas gravables | T32: Impuesto sobre la renta líquida gravable | AB32: 79 | AC32: =ROUND('H3 (ERI - Renta Liquida)'!L506,-3) -> 0 | AI32: 12
A33: Ingresos | B33: Ingresos brutos de actividades ordinarias | K33: 44 | L33: =ROUND('H3 (ERI - Renta Liquida)'!$L$12+'H3 (ERI - Renta Liquida)'!$L$58+'H3 (ERI - Renta Liquida)'!$L$82+'H3 (ERI - Renta Liquida)'!$L$95+'H3 (ERI - Renta Liquida)'!$L$103,-3) -> 0 | T33: Impuesto de dividendos y/o participaciones gravadas, a la tarifa del 7,5% (base casilla 50) | AB33: 80 | AC33: =ROUND(L39*(7.5%)/1000,0)*1000 -> 0 | AI33: 13
B34: Ingresos financieros | K34: 45 | L34: =ROUND('H3 (ERI - Renta Liquida)'!$L$39,-3) -> 0 | T34: Impuesto de dividendos y/o participaciones gravadas, a la tarifa del artículo 240 del E.T. (base casilla 51). | AB34: 81 | AC34: =ROUND((L40*33%+(L40*0.67*0.075))/1000,0)*1000 -> 0 | AI34: 14
B35: Dividendos y/o participaciones no constitutivos de renta ni ganancia ocasional (incluye capitalizaciones no gravadas) | K35: 46 | L35: =ROUND('H3 (ERI - Renta Liquida)'!L50+'H3 (ERI - Renta Liquida)'!L53+'H3 (ERI - Renta Liquida)'!L54,-3) -> 0 | T35: Impuesto de dividendos y/o participaciones gravadas, a la tarifa del 33% (base casilla 49) | AB35: 82 | AC35: =ROUND(L38*(33%)/1000,0)*1000 -> 0
B36: Dividendos y/o participaciones recibidas por CHC de una entidad no residente en Colombia exentos | K36: 47 | L36: =ROUND('H3 (ERI - Renta Liquida)'!L52,-3) -> 0 | S36: Total impuesto sobre las rentas líquidas gravables (79 + 80 + 81 + 82) | AB36: 83 | AC36: =SUM(AC32:AH35) -> 0 | AI36: 15
B37: Dividendos y/o participaciones gravadas recibidas por sociedades extranjeras (año 2016 y anteriores) o sociedades nacionales cualquier año | K37: 48 | L37: =ROUND(IF('H1 (Caratula)'!AQ21="N",'H3 (ERI - Renta Liquida)'!$L$51,0),-3) -> 0 | S37: Descuentos tributarios | AB37: 84 | AC37: =ROUND('H3 (ERI - Renta Liquida)'!L516,-3) -> 0
B38: Dividendos y/o participaciones gravadas recibidas por Personas Naturales sin residencia fiscal (año 2016 y anteriores) | K38: 49 | L38: =ROUND(IF('H1 (Caratula)'!AQ21="S",'H3 (ERI - Renta Liquida)'!$L$51,0),-3) -> 0 | S38: Impuesto neto de renta (83 - 84) | AB38: 85 | AC38: =IF(AC36-AC37<0,AC36,AC36-AC37) -> 0
B39: Dividendos y/o participaciones gravadas al 7,5% | K39: 50 | L39: =ROUND('H3 (ERI - Renta Liquida)'!L56,-3) -> 0 | S39: Impuesto de ganancias ocasionales | AB39: 86 | AC39: =ROUND('H3 (ERI - Renta Liquida)'!K507,-3) -> 0
B40: Dividendos y/o participaciones gravadas a tarifa general (EP y sociedades extranjeras - utilidades generadas a partir del año 2017) | K40: 51 | L40: =ROUND('H3 (ERI - Renta Liquida)'!L57,-3) -> 0 | S40: Descuento por impuestos pagados en el exterior por ganancias ocasionales | AB40: 87 | AC40: =ROUND('H3 (ERI - Renta Liquida)'!L517,-3) -> 0 | AI40: 16
B41: Otros ingresos | K41: 52 | L41: =ROUND('H3 (ERI - Renta Liquida)'!$L$64+'H3 (ERI - Renta Liquida)'!$L$108+'H3 (ERI - Renta Liquida)'!$L$116,-3) -> 0 | S41: Total impuesto a cargo (85 + 86 - 87) | AB41: 88 | AC41: =AC38+AC39-AC40 -> 0 | AI41: 17
B42: Total ingresos brutos (44 + 45 + 46 + 47 + 48 + 49 + 50 + 51 + 52) | K42: 53 | L42: =SUM(L33:Q41) -> 0 | S42: Valor inversión Obras por Impuestos hasta del 50% del valor de la casilla 88 (Modalidad de pago 1) | AB42: 89 | AC42: =ROUND('H3 (ERI - Renta Liquida)'!L518,-3) -> 0 | AI42: 18
B43: Devoluciones, rebajas y descuentos en ventas | K43: 54 | L43: =ROUND('H3 (ERI - Renta Liquida)'!$L$35,-3) -> 0 | S43: Descuento efectivo Inversión Obras por Impuesto (Modalidad de pago 2) | AB43: 90 | AC43: =ROUND('H3 (ERI - Renta Liquida)'!L519,-3) -> 0 | AI43: 19
B44: Ingresos no constitutivos de renta ni ganancia ocasional | K44: 55 | L44: =ROUND('H3 (ERI - Renta Liquida)'!$L$122,-3) -> 0 | S44: Anticipo renta liquidado año gravable anterior | AB44: 91 | AC44: =ROUND('H3 (ERI - Renta Liquida)'!L520,-3) -> 0
B45: Total ingresos netos (53 - 54 - 55) | K45: 56 | L45: =L42-L43-L44 -> 0 | S45: Saldo a favor año gravable anterior sin solicitud de devolución y/o compensación | AB45: 92 | AC45: =ROUND('H3 (ERI - Renta Liquida)'!L522,-3) -> 0 | AI45: 21
A46: Costos y Deducciones | B46: Costos | K46: 57 | L46: =ROUND('H3 (ERI - Renta Liquida)'!$L$186,-3) -> 0 | S46: Retenciones | T46: Autorretenciones | AB46: 93 | AC46: =ROUND('H3 (ERI - Renta Liquida)'!L527,-3) -> 0 | AI46: 22
B47: Gastos de administración | K47: 58 | L47: =IF(OR(A78=0,A78=" "),"0",ROUND('H3 (ERI - Renta Liquida)'!$L$188-'H3 (ERI - Renta Liquida)'!$L$341*('H3 (ERI - Renta Liquida)'!$L$188/('H3 (ERI - Renta Liquida)'!$L$188+'H3 (ERI - Renta Liquida)'!$L$240+'H3 (ERI - Renta Liquida)'!$L$295)),-3)) -> 0 | T47: Otras retenciones | AB47: 94 | AC47: =ROUND('H3 (ERI - Renta Liquida)'!L534,-3) -> 0 | AI47: 23
B48: Gastos de distribución y ventas | K48: 59 | L48: =IF(OR(A78=0,A78=" "),"0",ROUND('H3 (ERI - Renta Liquida)'!$L$240-'H3 (ERI - Renta Liquida)'!$L$341*('H3 (ERI - Renta Liquida)'!$L$240/('H3 (ERI - Renta Liquida)'!$L$188+'H3 (ERI - Renta Liquida)'!$L$240+'H3 (ERI - Renta Liquida)'!$L$295)),-3)) -> 0 | T48: Total retenciones año gravable a declarar (93 + 94) | AB48: 95 | AC48: =AC46+AC47 -> 0 | AI48: 24
B49: Gastos financieros | K49: 60 | L49: =IF(OR(A78=0,A78=" "),"0",ROUND('H3 (ERI - Renta Liquida)'!$L$295-'H3 (ERI - Renta Liquida)'!$L$341*('H3 (ERI - Renta Liquida)'!$L$295/('H3 (ERI - Renta Liquida)'!$L$188+'H3 (ERI - Renta Liquida)'!$L$240+'H3 (ERI - Renta Liquida)'!$L$295)),-3)) -> 0 | S49: Anticipo renta para el año gravable siguiente | AB49: 96 | AC49: =ROUND('H3 (ERI - Renta Liquida)'!L536,-3) -> 0 | AI49: 25
B50: Otros gastos y deducciones | K50: 61 | L50: =ROUND('H3 (ERI - Renta Liquida)'!$L$307+'H3 (ERI - Renta Liquida)'!$L$310+'H3 (ERI - Renta Liquida)'!$L$316+'H3 (ERI - Renta Liquida)'!$L$326+'H3 (ERI - Renta Liquida)'!$L$334+'H3 (ERI - Renta Liquida)'!L340,-3) -> 0 | S50: Sobretasa instituciones financieras | T50: Anticipo sobretasa instituciones financieras año gravable anterior | AB50: 97 | AC50: =ROUND('H3 (ERI - Renta Liquida)'!L537,-3) -> 0 | AI50: 26
B51: Total costos y gastos deducibles (57 + 58 + 59 + 60 + 61) | K51: 62 | L51: =SUM(L46:Q50) -> 0 | T51: Sobretasa instituciones financieras | AB51: 98 | AC51: =ROUND('H3 (ERI - Renta Liquida)'!L538,-3) -> 0 | AI51: 27
A52: ESAL (R.T.E.) | B52: Inversiones efectuadas en el año | K52: 63 | L52: =ROUND('H3 (ERI - Renta Liquida)'!L463,-3) -> 0 | T52: Anticipo sobretasa instituciones financieras año gravable siguiente | AB52: 99 | AC52: =ROUND('H3 (ERI - Renta Liquida)'!L539,-3) -> 0 | AI52: 28
B53: Inversiones liquidadas de periodos gravables anteriores | K53: 64 | L53: =ROUND('H3 (ERI - Renta Liquida)'!L464,-3) -> 0 | S53: Saldo a pagar por impuesto (88 + 96 + 98 + 99 - 89 - 90 - 91 - 92 - 95 - 97) | AB53: 100 | AC53: =IF(AC41+AC49+AC51+AC52-AC42-AC43-AC44-AC45-AC48-AC50<0,0,AC41+AC49+AC51+AC52-AC42-AC43-AC44-AC45-AC48-AC50) -> 0
A54: Renta | B54: Renta por recuperación de deducciones | K54: 65 | L54: =ROUND('H3 (ERI - Renta Liquida)'!L477,-3) -> 0 | S54: Sanciones | AB54: 101 | AC54: =ROUND('H3 (ERI - Renta Liquida)'!L540,-3) -> 0
B55: Renta Pasiva - ECE sin residencia fiscal en Colombia | K55: 66 | L55: =ROUND('H3 (ERI - Renta Liquida)'!L476,-3) -> 0 | S55: Total saldo a pagar (88 + 96 + 98 + 99 + 101 - 89 - 90 - 91 - 92 - 95 - 97) | AB55: 102 | AC55: =IF(AC41+AC49+AC51+AC52+AC54-AC42-AC43-AC44-AC45-AC48-AC50<0,0,AC41+AC49+AC51+AC52+AC54-AC42-AC43-AC44-AC45-AC48-AC50) -> 0 | AI55: 31
B56: Renta líquida ordinaria del ejercicio (56 + 64 + 65 + 66 - 49 - 50 - 51 - 62 - 63) | K56: 67 | L56: =IF(L45+L53+L54+L55-L38-L39-L40-L51-L52<0,0,L45+L53+L54+L55-L38-L39-L40-L51-L52) -> 0 | S56: Total saldo a favor (89 + 90 + 91 + 92 + 95 + 97 - 88 - 96 - 98 - 99 - 101) | AB56: 103 | AC56: =IF(AC42+AC43+AC44+AC45+AC48+AC50-AC41-AC49-AC51-AC52-AC54<0,0,(AC42+AC43+AC44+AC45+AC48+AC50-AC41-AC49-AC51-AC52-AC54)) -> 0
B57: Pérdida líquida del ejercicio (49 + 50 + 51 + 62 + 63 - 56 - 64 - 65 - 66) | K57: 68 | L57: =IF(L38+L39+L40+L51+L52-L45-L53-L54-L55<0,0,L38+L39+L40+L51+L52-L45-L53-L54-L55) -> 0 | R57: Valor impuesto exigible por Obras por Impuestos modalidad de pago 1 | AB57: 104 | AC57: =IF(AC42>0,AC42,0) -> 0
A58: 106. No. Identificación signatario | K58: 107. DV | R58: Valor total proyecto Obras por Impuestos modalidad de pago 2 | AB58: 105 | AC58: 0
A59: 981. Cód. Representación | E59: 01 | J59: 997. Espacio exclusivo para el sello de la entidad recaudadora | U59: 980. Pago total $
A60: Firme del declarante o de quien lo representa
U63: 996. Espacio para el número interno de la DIAN / Adhesivo
A64: 982. Código Contador o Revisor Fiscal:
A65: Firma Contador o Revisor fiscal | F65: 994. Con salvedades
A68: 983. No. Tarjeta profesional
A78: =('H3 (ERI - Renta Liquida)'!$L$188+'H3 (ERI - Renta Liquida)'!$L$240+'H3 (ERI - Renta Liquida)'!$L$295) -> 0

Sheet ejemplos (hidden)
A1: el ejemplo se trata de un activo biologico el cual va cambiando de valor contable por la medicion a valor razonable así como de costo fiscal, por efectos de la capitalización de los costos y gastos
A3: 1. pasivo por impuesto diferido
A5: Código de la cuenta contable | B5: Nombre de la cuenta contable | C5: Valor en Libros | D5: Base Fiscal | E5: Diferencia Temporaria | F5: Tasa fiscal aplicada | G5: Pasivo por impuesto diferido a 31/12/20XX | H5: Pasivo por impuesto diferido a 31/12/20XX-1 | I5: Variación | J5: Año de origen de la diferencia temporaria | K5: Año que se prevé reversar toda la diferencia temporaria
A7: año 2016
A8: 115B | B8: activos biologicas - plantas vivas | C8: 100 | D8: 20 | E8: 80 | F8: 0.25 | G8: 20 | H8: 0 | I8: 20 | J8: 2016 | K8: 2019
A10: 9C | B10: Otras diferencias temporarias | D10: (+/-) Generaciones | E10: (+/-) Reversiones
B11: Mediciones de activos biologicos al valor razonable menos costos de venta | C11: Cambios en el valor razonable menos costos de venta del activo biológico | D11: 20
A13: año 2017
A14: 115B | B14: activos biologicas - plantas vivas | C14: 250 | D14: 100 | E14: 150 | F14: 0.25 | G14: 37.5 | H14: 20 | I14: 17.5 | J14: 2017 | K14: 2019
A16: 9C | B16: Otras diferencias temporarias | D16: (+/-) Generaciones | E16: (+/-) Reversiones
B17: Mediciones de activos biologicos al valor razonable menos costos de venta | C17: Cambios en el valor razonable menos costos de venta del activo biológico | D17: 17.5
A19: año 2018
A20: 115B | B20: activos biologicas - plantas vivas | C20: 220 | D20: 150 | E20: 70 | F20: 0.25 | G20: =E20*F20 -> 17.5 | H20: 37.5 | I20: -20
A22: 9C | B22: Otras diferencias temporarias | D22: (+/-) Generaciones | E22: (+/-) Reversiones
B23: Mediciones de activos biologicos al valor razonable menos costos de venta | C23: Cambios en el valor razonable menos costos de venta del activo biológico | E23: 20
A25: año 2019 venta
A26: 115B | B26: activos biologicas - plantas vivas | C26: 0 | D26: 0 | E26: 0 | F26: 0.25 | G26: 0 | H26: 17.5 | I26: -17.5 | J26: 2016 | K26: 2019
A29: 9C | B29: Otras diferencias temporarias | D29: (+/-) Generaciones | E29: (+/-) Reversiones
B30: Mediciones de activos biologicos al valor razonable menos costos de venta | C30: Cambios en el valor razonable menos costos de venta del activo biológico | E30: 17.5
